Department Family,Entity,Date,Expense Type,Expense Area,Supplier,Transaction Number,AP Amount,Supplier Postcode
Department of Health,NHS Sheffield CCG,30/04/2021,Participation Fees,CLINICAL LEADS,C THE SIGNS LTD,36231157,"324,000.00",W1G 9QD
Department of Health,NHS Sheffield CCG,30/04/2021,Hcare Srv Rec Fdtn Trust-Non Contract,ACUTE COMMISSIONING,SHEFFIELD TEACHING HOSPITALS NHS FOUNDATION TRUST,36231169,"-565,584.00",S5 7AU
Department of Health,NHS Sheffield CCG,30/04/2021,Hcare Srv Rec Fdtn Trust-Contract Baseline,MENTAL HEALTH CONTRACTS,SHEFFIELD HEALTH & SOCIAL CARE NHS FOUNDATION TRUST,36231172,"386,000.00",S10 3TH
Department of Health,NHS Sheffield CCG,30/04/2021,Hcare Srv Rec Fdtn Trust-Contract Baseline,MENTAL HEALTH CONTRACTS,SHEFFIELD HEALTH & SOCIAL CARE NHS FOUNDATION TRUST,36231173,"136,000.00",S10 3TH
Department of Health,NHS Sheffield CCG,30/04/2021,FM Computer Contracts,PRIMARY CARE IT,NHS BARNSLEY CCG,36231176,"159,497.43",WF3 1WE
Department of Health,NHS Sheffield CCG,30/04/2021,FM Computer Contracts,PRIMARY CARE IT,NHS BASSETLAW CCG,36231177,"60,672.48",WF3 1WE
Department of Health,NHS Sheffield CCG,30/04/2021,Hcare Srv Rec Fdtn Trust-Non Contract,ACUTE COMMISSIONING,SHEFFIELD TEACHING HOSPITALS NHS FOUNDATION TRUST,36231178,"65,000.00",S5 7AU
Department of Health,NHS Sheffield CCG,30/04/2021,Clinical&Medical-Voluntary Sector,COMMISSIONING - NON ACUTE,AGE UK SHEFFIELD,36231185,"30,000.00",S2 3FG
Department of Health,NHS Sheffield CCG,30/04/2021,Audit Fees: Statutory,FINANCE,KPMG LLP,36231190,"27,000.00",WD17 1DE
Department of Health,NHS Sheffield CCG,30/04/2021,FM Computer Contracts,PRIMARY CARE IT,TRUSTMARQUE SOLUTIONS LTD,36234252,"30,800.00",YO41 1LZ
Department of Health,NHS Sheffield CCG,30/04/2021,FM Computer Contracts,PRIMARY CARE IT,TRUSTMARQUE SOLUTIONS LTD,36234252,"6,160.00",YO41 1LZ
Department of Health,NHS Sheffield CCG,30/04/2021,Clinical&Medical-Independent Sector,MENTAL HEALTH SERVICES - OTHER,PRIMARY CARE SHEFFIELD LTD,36240367,"260,000.00",S9 4EU
Department of Health,NHS Sheffield CCG,30/04/2021,C&M-PMS LES Diabetes-Insulin (GTT),LOCAL ENHANCED SERVICES,PRIMARY CARE SHEFFIELD LTD,36240369,"176,000.00",S9 4EU
Department of Health,NHS Sheffield CCG,30/04/2021,External Consultancy Fees,LOCAL ENHANCED SERVICES,SHEFFIELD CITY COUNCIL,36240371,"393,000.00",S1 2HH
Department of Health,NHS Sheffield CCG,30/04/2021,Soc Care-Other Soc Care,COMMISSIONING - NON ACUTE,SHEFFIELD CITY COUNCIL,36253584,"643,909.20",S1 1UJ
Department of Health,NHS Sheffield CCG,30/04/2021,C&M-GMS LES CCGLcltyExec&Clin Leads,LOCAL ENHANCED SERVICES,FOUNDRY MEDICAL GROUP,36265653,"25,000.00",S3 9DL
Department of Health,NHS Sheffield CCG,30/04/2021,Hcare Srv Rec Fdtn Trust-Contract Baseline,ACUTE COMMISSIONING,BARNSLEY HOSPITAL NHS FOUNDATION TRUST,36268705,"131,016.71",S75 2EP
Department of Health,NHS Sheffield CCG,30/04/2021,Hcare Srv Rec Fdtn Trust-Contract Baseline,ACUTE COMMISSIONING,CHESTERFIELD ROYAL HOSPITAL NHS FOUNDATION TRUST,36268706,"369,177.00",S44 5BL
Department of Health,NHS Sheffield CCG,30/04/2021,Hcare Srv Rec Fdtn Trust-Contract Baseline,ACUTE COMMISSIONING,DONCASTER AND BASSETLAW HOSPITALS NHS FOUNDATION TRUST,36268707,"79,729.44",WF3 1WE
Department of Health,NHS Sheffield CCG,30/04/2021,Hcare Srv Rec NHS Trust-Contract Baseline,AMBULANCE SERVICES,YORKSHIRE AMBULANCE SERVICE NHS TRUST,36268708,"2,402,179.62",WF2 0XQ
Department of Health,NHS Sheffield CCG,30/04/2021,Hcare Srv Rec Fdtn Trust-Contract Baseline,ACUTE CHILDRENS SERVICES,SHEFFIELD CHILDRENS NHS FOUNDATION TRUST,36268709,"3,460,348.98",S10 2TH
Department of Health,NHS Sheffield CCG,30/04/2021,Hcare Srv Rec Fdtn Trust-Contract Baseline,MENTAL HEALTH CONTRACTS,SHEFFIELD HEALTH & SOCIAL CARE NHS FOUNDATION TRUST,36268710,"7,311,989.53",S10 3TH
Department of Health,NHS Sheffield CCG,30/04/2021,Hcare Srv Rec Fdtn Trust-Contract Baseline,ACUTE COMMISSIONING,SHEFFIELD TEACHING HOSPITALS NHS FOUNDATION TRUST,36268711,"37,588,203.57",S5 7AU
Department of Health,NHS Sheffield CCG,30/04/2021,Hcare Srv Rec Fdtn Trust-Contract Baseline,ACUTE COMMISSIONING,ROTHERHAM NHS FOUNDATION TRUST,36268712,"618,988.29",S60 2TY
Department of Health,NHS Sheffield CCG,30/04/2021,Hcare Srv Rec Fdtn Trust-Contract Baseline,ACUTE CHILDRENS SERVICES,SHEFFIELD CHILDRENS NHS FOUNDATION TRUST,36268713,"2,014,666.67",S10 2TH
Department of Health,NHS Sheffield CCG,30/04/2021,Hcare Srv Rec Fdtn Trust-Contract Baseline,MENTAL HEALTH CONTRACTS,SHEFFIELD HEALTH & SOCIAL CARE NHS FOUNDATION TRUST,36268714,"361,833.33",S10 3TH
Department of Health,NHS Sheffield CCG,30/04/2021,Hcare Srv Rec Fdtn Trust-Contract Baseline,ACUTE COMMISSIONING,SHEFFIELD TEACHING HOSPITALS NHS FOUNDATION TRUST,36268715,"3,995,833.33",S5 7AU
Department of Health,NHS Sheffield CCG,30/04/2021,Clinical&Medical-Serv Recd-F Trsts,BEREAVEMENT SERVICE,HUMBER TEACHING NHS FOUNDATION TRUST,36268716,"50,667.00",WF3 1WE
Department of Health,NHS Sheffield CCG,30/04/2021,C&M-PMS LES Primary Care Offer,LOCAL ENHANCED SERVICES,UNIVERSITY HEALTH SERVICE,36273341,"25,529.00",S3 7QP
Department of Health,NHS Sheffield CCG,30/04/2021,Clinical&Medical-Voluntary Sector,CHILD AND ADOLESCENT MENTAL HEALTH,SHEFFIELD FUTURES,36288319,"25,600.00",S1 4GE
Department of Health,NHS Sheffield CCG,30/04/2021,Clinical&Medical-Serv Recd-CCGs,CLINICAL LEADS,NHS BASSETLAW CCG,36288369,"32,000.00",WF3 1WE
Department of Health,NHS Sheffield CCG,30/04/2021,C&M-PMS Contract Value,PRC DELEGATED CO-COMMISSIONING,BIRLEY HEALTH CENTRE,36298695,"67,583.06",S12 3BP
Department of Health,NHS Sheffield CCG,30/04/2021,C&M-PMS Prem Notional Rent,PRC DELEGATED CO-COMMISSIONING,BIRLEY HEALTH CENTRE,36298695,"7,600.58",S12 3BP
Department of Health,NHS Sheffield CCG,30/04/2021,C&M-PMS Prem Water Rates,PRC DELEGATED CO-COMMISSIONING,BIRLEY HEALTH CENTRE,36298695,241.88,S12 3BP
Department of Health,NHS Sheffield CCG,30/04/2021,C&M-PMS Contract Value,PRC DELEGATED CO-COMMISSIONING,BURNCROSS SURGERY,36298697,"127,123.64",S35 1RN
Department of Health,NHS Sheffield CCG,30/04/2021,C&M-PMS Funding Differential Review,PRC DELEGATED CO-COMMISSIONING,BURNCROSS SURGERY,36298697,"2,746.32",S35 1RN
Department of Health,NHS Sheffield CCG,30/04/2021,C&M-PMS Prem Notional Rent,PRC DELEGATED CO-COMMISSIONING,BURNCROSS SURGERY,36298697,"14,919.67",S35 1RN
Department of Health,NHS Sheffield CCG,30/04/2021,C&M-PMS Contract Value,PRC DELEGATED CO-COMMISSIONING,BURNGREAVE SURGERY,36298699,"59,337.84",S3 9DA
Department of Health,NHS Sheffield CCG,30/04/2021,C&M-PMS PCO Locum Sickness,PRC DELEGATED CO-COMMISSIONING,BURNGREAVE SURGERY,36298699,"11,218.25",S3 9DA
Department of Health,NHS Sheffield CCG,30/04/2021,C&M-PMS Prem Notional Rent,PRC DELEGATED CO-COMMISSIONING,BURNGREAVE SURGERY,36298699,"6,622.92",S3 9DA
Department of Health,NHS Sheffield CCG,30/04/2021,C&M-PMS Prem Rates,PRC DELEGATED CO-COMMISSIONING,BURNGREAVE SURGERY,36298699,322.6,S3 9DA
Department of Health,NHS Sheffield CCG,30/04/2021,C&M-PMS Contract Value,PRC DELEGATED CO-COMMISSIONING,DEEPCAR MEDICAL CENTRE,36298702,"43,351.63",S36 2RA
Department of Health,NHS Sheffield CCG,30/04/2021,C&M-PMS Dispensing Quality Sch,PRC DELEGATED CO-COMMISSIONING,DEEPCAR MEDICAL CENTRE,36298702,"1,013.94",S36 2RA
Department of Health,NHS Sheffield CCG,30/04/2021,C&M-PMS Prem Healthcentre Rent,PRC DELEGATED CO-COMMISSIONING,DEEPCAR MEDICAL CENTRE,36298702,"30,655.22",S36 2RA
Department of Health,NHS Sheffield CCG,30/04/2021,C&M-PMS Contract Value,PRC DELEGATED CO-COMMISSIONING,DOVERCOURT SURGERY,36298704,"79,283.84",S2 5FX
Department of Health,NHS Sheffield CCG,30/04/2021,C&M-PMS Prem Actual Rent,PRC DELEGATED CO-COMMISSIONING,DOVERCOURT SURGERY,36298704,"14,108.33",S2 5FX
Department of Health,NHS Sheffield CCG,30/04/2021,C&M-PMS Prem Rates,PRC DELEGATED CO-COMMISSIONING,DOVERCOURT SURGERY,36298704,"17,964.00",S2 5FX
Department of Health,NHS Sheffield CCG,30/04/2021,C&M-PMS Prem Water Rates,PRC DELEGATED CO-COMMISSIONING,DOVERCOURT SURGERY,36298704,"3,994.44",S2 5FX
Department of Health,NHS Sheffield CCG,30/04/2021,C&M-PMS Contract Value,PRC DELEGATED CO-COMMISSIONING,DR MEHROTRA & PARTNER,36298706,"25,228.00",S9 5DH
Department of Health,NHS Sheffield CCG,30/04/2021,C&M-PMS Funding Differential Review,PRC DELEGATED CO-COMMISSIONING,DR MEHROTRA & PARTNER,36298706,520.47,S9 5DH
Department of Health,NHS Sheffield CCG,30/04/2021,C&M-PMS Prem Notional Rent,PRC DELEGATED CO-COMMISSIONING,DR MEHROTRA & PARTNER,36298706,"5,157.29",S9 5DH
Department of Health,NHS Sheffield CCG,30/04/2021,C&M-PMS GP Statutory Levy,PRC DELEGATED CO-COMMISSIONING,DR MILNER & PARTNERS,36298707,-372.96,S6 4JQ
Department of Health,NHS Sheffield CCG,30/04/2021,C&M-PMS Out of Hours Opt Outs,PRC DELEGATED CO-COMMISSIONING,DR MILNER & PARTNERS,36298707,"-3,788.75",S6 4JQ
Department of Health,NHS Sheffield CCG,30/04/2021,ME - PMS TPS Added Years Adj EEs,PRC DELEGATED CO-COMMISSIONING,DR MILNER & PARTNERS,36298707,-247.05,S6 4JQ
Department of Health,NHS Sheffield CCG,30/04/2021,C&M-PMS Contract Value,PRC DELEGATED CO-COMMISSIONING,DR MILNER & PARTNERS,36298708,"80,357.47",S6 4JQ
Department of Health,NHS Sheffield CCG,30/04/2021,C&M-PMS Prem Notional Rent,PRC DELEGATED CO-COMMISSIONING,DR MILNER & PARTNERS,36298708,"15,844.42",S6 4JQ
Department of Health,NHS Sheffield CCG,30/04/2021,C&M-PMS Prem Water Rates,PRC DELEGATED CO-COMMISSIONING,DR MILNER & PARTNERS,36298708,"1,029.28",S6 4JQ
Department of Health,NHS Sheffield CCG,30/04/2021,C&M-PMS Contract Value,PRC DELEGATED CO-COMMISSIONING,DYKES HALL MEDICAL CENTRE,36298710,"74,345.31",S6 4GQ
Department of Health,NHS Sheffield CCG,30/04/2021,C&M-PMS DES Extended Hours Access,PRC DELEGATED CO-COMMISSIONING,DYKES HALL MEDICAL CENTRE,36298710,"4,281.12",S6 4GQ
Department of Health,NHS Sheffield CCG,30/04/2021,C&M-PMS Funding Differential Review,PRC DELEGATED CO-COMMISSIONING,DYKES HALL MEDICAL CENTRE,36298710,"1,473.36",S6 4GQ
Department of Health,NHS Sheffield CCG,30/04/2021,C&M-PMS PCN DES Clinical Director,PRC DELEGATED CO-COMMISSIONING,DYKES HALL MEDICAL CENTRE,36298710,"2,188.13",S6 4GQ
Department of Health,NHS Sheffield CCG,30/04/2021,C&M-PMS PCN DES PCN support,LOCAL ENHANCED SERVICES,DYKES HALL MEDICAL CENTRE,36298710,"4,459.50",S6 4GQ
Department of Health,NHS Sheffield CCG,30/04/2021,C&M-PMS Prem Notional Rent,PRC DELEGATED CO-COMMISSIONING,DYKES HALL MEDICAL CENTRE,36298710,"5,406.25",S6 4GQ
Department of Health,NHS Sheffield CCG,30/04/2021,C&M-PMS Contract Value,PRC DELEGATED CO-COMMISSIONING,EAST BANK MEDICAL CENTRE,36298712,"52,191.84",S2 2AG
Department of Health,NHS Sheffield CCG,30/04/2021,C&M-PMS Prem Notional Rent,PRC DELEGATED CO-COMMISSIONING,EAST BANK MEDICAL CENTRE,36298712,"10,583.33",S2 2AG
Department of Health,NHS Sheffield CCG,30/04/2021,C&M-PMS Contract Value,PRC DELEGATED CO-COMMISSIONING,FIRTH PARK SURGERY,36298714,"80,907.98",S5 6HH
Department of Health,NHS Sheffield CCG,30/04/2021,C&M-PMS Prem Notional Rent,PRC DELEGATED CO-COMMISSIONING,FIRTH PARK SURGERY,36298714,"4,500.00",S5 6HH
Department of Health,NHS Sheffield CCG,30/04/2021,C&M-PMS Prem Water Rates,PRC DELEGATED CO-COMMISSIONING,FIRTH PARK SURGERY,36298714,610.77,S5 6HH
Department of Health,NHS Sheffield CCG,30/04/2021,C&M-PMS Contract Value,PRC DELEGATED CO-COMMISSIONING,FALKLAND HOUSE,36298716,"27,777.19",S11 7PL
Department of Health,NHS Sheffield CCG,30/04/2021,C&M-PMS Prem Notional Rent,PRC DELEGATED CO-COMMISSIONING,FALKLAND HOUSE,36298716,"1,866.67",S11 7PL
Department of Health,NHS Sheffield CCG,30/04/2021,C&M-PMS Prem Water Rates,PRC DELEGATED CO-COMMISSIONING,FALKLAND HOUSE,36298716,113.15,S11 7PL
Department of Health,NHS Sheffield CCG,30/04/2021,C&M-PMS Contract Value,PRC DELEGATED CO-COMMISSIONING,GLEADLESS MEDICAL CENTRE,36298718,"71,125.01",S14 1PQ
Department of Health,NHS Sheffield CCG,30/04/2021,C&M-PMS Funding Differential Review,PRC DELEGATED CO-COMMISSIONING,GLEADLESS MEDICAL CENTRE,36298718,"1,547.97",S14 1PQ
Department of Health,NHS Sheffield CCG,30/04/2021,C&M-PMS Prem Notional Rent,PRC DELEGATED CO-COMMISSIONING,GLEADLESS MEDICAL CENTRE,36298718,"9,864.95",S14 1PQ
Department of Health,NHS Sheffield CCG,30/04/2021,C&M-PMS Contract Value,PRC DELEGATED CO-COMMISSIONING,HACKENTHORPE MEDICAL CENTRE,36298720,"51,366.12",S12 4LA
Department of Health,NHS Sheffield CCG,30/04/2021,C&M-PMS Prem Notional Rent,PRC DELEGATED CO-COMMISSIONING,HACKENTHORPE MEDICAL CENTRE,36298720,"5,116.67",S12 4LA
Department of Health,NHS Sheffield CCG,30/04/2021,C&M-PMS Contract Value,PRC DELEGATED CO-COMMISSIONING,HEALTH CARE SURGERY,36298721,"65,408.63",S5 8GS
Department of Health,NHS Sheffield CCG,30/04/2021,C&M-PMS Funding Differential Review,PRC DELEGATED CO-COMMISSIONING,HEALTH CARE SURGERY,36298721,506.77,S5 8GS
Department of Health,NHS Sheffield CCG,30/04/2021,C&M-PMS Prem Notional Rent,PRC DELEGATED CO-COMMISSIONING,HEALTH CARE SURGERY,36298721,"5,558.33",S5 8GS
Department of Health,NHS Sheffield CCG,30/04/2021,C&M-PMS Contract Value,PRC DELEGATED CO-COMMISSIONING,JAUNTY SPRINGS HEALTH CENTRE,36298723,"32,749.50",S12 3DZ
Department of Health,NHS Sheffield CCG,30/04/2021,C&M-PMS DES Extended Hours Access,PRC DELEGATED CO-COMMISSIONING,JAUNTY SPRINGS HEALTH CENTRE,36298723,"4,196.88",S12 3DZ
Department of Health,NHS Sheffield CCG,30/04/2021,C&M-PMS PCN DES Clinical Director,PRC DELEGATED CO-COMMISSIONING,JAUNTY SPRINGS HEALTH CENTRE,36298723,"2,145.07",S12 3DZ
Department of Health,NHS Sheffield CCG,30/04/2021,C&M-PMS PCN DES PCN support,LOCAL ENHANCED SERVICES,JAUNTY SPRINGS HEALTH CENTRE,36298723,"4,371.75",S12 3DZ
Department of Health,NHS Sheffield CCG,30/04/2021,C&M-PMS Prem Notional Rent,PRC DELEGATED CO-COMMISSIONING,JAUNTY SPRINGS HEALTH CENTRE,36298723,"3,208.33",S12 3DZ
Department of Health,NHS Sheffield CCG,30/04/2021,C&M-PMS Prem Rates,PRC DELEGATED CO-COMMISSIONING,JAUNTY SPRINGS HEALTH CENTRE,36298723,851,S12 3DZ
Department of Health,NHS Sheffield CCG,30/04/2021,C&M-PMS Prem Water Rates,PRC DELEGATED CO-COMMISSIONING,JAUNTY SPRINGS HEALTH CENTRE,36298723,43.42,S12 3DZ
Department of Health,NHS Sheffield CCG,30/04/2021,C&M-PMS Contract Value,PRC DELEGATED CO-COMMISSIONING,MANCHESTER ROAD SURGERY SHEFFIELD,36298726,"35,267.22",S10 5PN
Department of Health,NHS Sheffield CCG,30/04/2021,C&M-PMS Prem Cost Rent,PRC DELEGATED CO-COMMISSIONING,MANCHESTER ROAD SURGERY SHEFFIELD,36298726,"3,077.32",S10 5PN
Department of Health,NHS Sheffield CCG,30/04/2021,C&M-PMS Prem Notional Rent,PRC DELEGATED CO-COMMISSIONING,MANCHESTER ROAD SURGERY SHEFFIELD,36298726,442.92,S10 5PN
Department of Health,NHS Sheffield CCG,30/04/2021,C&M-PMS Prem Rates,PRC DELEGATED CO-COMMISSIONING,MANCHESTER ROAD SURGERY SHEFFIELD,36298726,981.25,S10 5PN
Department of Health,NHS Sheffield CCG,30/04/2021,C&M-PMS Contract Value,PRC DELEGATED CO-COMMISSIONING,MOSBOROUGH HEALTH CENTRE,36298728,"53,688.83",S20 5BQ
Department of Health,NHS Sheffield CCG,30/04/2021,C&M-PMS Prem Notional Rent,PRC DELEGATED CO-COMMISSIONING,MOSBOROUGH HEALTH CENTRE,36298728,"4,541.67",S20 5BQ
Department of Health,NHS Sheffield CCG,30/04/2021,C&M-PMS Prem Water Rates,PRC DELEGATED CO-COMMISSIONING,MOSBOROUGH HEALTH CENTRE,36298728,44.33,S20 5BQ
Department of Health,NHS Sheffield CCG,30/04/2021,C&M-PMS Contract Value,PRC DELEGATED CO-COMMISSIONING,NETHERGREEN SURGERY,36298730,"67,357.63",S11 7EJ
Department of Health,NHS Sheffield CCG,30/04/2021,C&M-PMS DES Learn Dsblty Hlth Chk,PRC DELEGATED CO-COMMISSIONING,NETHERGREEN SURGERY,36298730,"1,820.00",S11 7EJ
Department of Health,NHS Sheffield CCG,30/04/2021,C&M-PMS Funding Differential Review,PRC DELEGATED CO-COMMISSIONING,NETHERGREEN SURGERY,36298730,"1,369.87",S11 7EJ
Department of Health,NHS Sheffield CCG,30/04/2021,C&M-PMS Prem Cost Rent,PRC DELEGATED CO-COMMISSIONING,NETHERGREEN SURGERY,36298730,"5,057.33",S11 7EJ
Department of Health,NHS Sheffield CCG,30/04/2021,C&M-PMS Prem Water Rates,PRC DELEGATED CO-COMMISSIONING,NETHERGREEN SURGERY,36298730,"1,131.00",S11 7EJ
Department of Health,NHS Sheffield CCG,30/04/2021,C&M-PMS GP Statutory Levy,PRC DELEGATED CO-COMMISSIONING,OWLTHORPE MEDICAL CENTRE,36298731,-151.45,S20 6PD
Department of Health,NHS Sheffield CCG,30/04/2021,C&M-PMS Out of Hours Opt Outs,PRC DELEGATED CO-COMMISSIONING,OWLTHORPE MEDICAL CENTRE,36298731,"-1,626.60",S20 6PD
Department of Health,NHS Sheffield CCG,30/04/2021,ME - PMS GP Prior Year ERs,PRC DELEGATED CO-COMMISSIONING,OWLTHORPE MEDICAL CENTRE,36298731,"-10,913.56",S20 6PD
Department of Health,NHS Sheffield CCG,30/04/2021,C&M-PMS Contract Value,PRC DELEGATED CO-COMMISSIONING,OWLTHORPE MEDICAL CENTRE,36298732,"34,518.79",S20 6PD
Department of Health,NHS Sheffield CCG,30/04/2021,C&M-PMS PCO Other,PRC DELEGATED CO-COMMISSIONING,OWLTHORPE MEDICAL CENTRE,36298732,"3,092.00",S20 6PD
Department of Health,NHS Sheffield CCG,30/04/2021,C&M-PMS Prem Actual Rent,PRC DELEGATED CO-COMMISSIONING,OWLTHORPE MEDICAL CENTRE,36298732,"7,539.58",S20 6PD
Department of Health,NHS Sheffield CCG,30/04/2021,C&M-PMS Contract Value,PRC DELEGATED CO-COMMISSIONING,PAGE HALL MEDICAL CENTRE,36298734,"60,848.74",S4 8GB
Department of Health,NHS Sheffield CCG,30/04/2021,C&M-PMS Funding Differential Review,PRC DELEGATED CO-COMMISSIONING,PAGE HALL MEDICAL CENTRE,36298734,"1,161.37",S4 8GB
Department of Health,NHS Sheffield CCG,30/04/2021,C&M-PMS Prem Notional Rent,PRC DELEGATED CO-COMMISSIONING,PAGE HALL MEDICAL CENTRE,36298734,"4,833.33",S4 8GB
Department of Health,NHS Sheffield CCG,30/04/2021,C&M-PMS GP Statutory Levy,PRC DELEGATED CO-COMMISSIONING,PORTER BROOK MEDICAL CENTRE,36298735,-995.86,S11 8HN
Department of Health,NHS Sheffield CCG,30/04/2021,C&M-PMS Out of Hours Opt Outs,PRC DELEGATED CO-COMMISSIONING,PORTER BROOK MEDICAL CENTRE,36298735,"-7,856.53",S11 8HN
Department of Health,NHS Sheffield CCG,30/04/2021,ME - PMS GP Prior Year ERs,PRC DELEGATED CO-COMMISSIONING,PORTER BROOK MEDICAL CENTRE,36298735,-513.3,S11 8HN
Department of Health,NHS Sheffield CCG,30/04/2021,C&M-PMS Contract Value,PRC DELEGATED CO-COMMISSIONING,PORTER BROOK MEDICAL CENTRE,36298736,"167,407.36",S11 8HN
Department of Health,NHS Sheffield CCG,30/04/2021,C&M-PMS Funding Differential Review,PRC DELEGATED CO-COMMISSIONING,PORTER BROOK MEDICAL CENTRE,36298736,"3,636.27",S11 8HN
Department of Health,NHS Sheffield CCG,30/04/2021,C&M-PMS Prem Notional Rent,PRC DELEGATED CO-COMMISSIONING,PORTER BROOK MEDICAL CENTRE,36298736,"11,333.34",S11 8HN
Department of Health,NHS Sheffield CCG,30/04/2021,C&M-PMS Prem Water Rates,PRC DELEGATED CO-COMMISSIONING,PORTER BROOK MEDICAL CENTRE,36298736,357.91,S11 8HN
Department of Health,NHS Sheffield CCG,30/04/2021,C&M-PMS Contract Value,PRC DELEGATED CO-COMMISSIONING,RICHMOND MEDICAL CENTRE,36298738,"72,709.83",S13 8NA
Department of Health,NHS Sheffield CCG,30/04/2021,C&M-PMS Prem Notional Rent,PRC DELEGATED CO-COMMISSIONING,RICHMOND MEDICAL CENTRE,36298738,"4,731.00",S13 8NA
Department of Health,NHS Sheffield CCG,30/04/2021,C&M-PMS Contract Value,PRC DELEGATED CO-COMMISSIONING,RUSTLINGS ROAD MEDICAL CENTRE,36298741,"30,145.44",S11 7AB
Department of Health,NHS Sheffield CCG,30/04/2021,C&M-PMS Funding Differential Review,PRC DELEGATED CO-COMMISSIONING,RUSTLINGS ROAD MEDICAL CENTRE,36298741,565.04,S11 7AB
Department of Health,NHS Sheffield CCG,30/04/2021,C&M-PMS Prem Notional Rent,PRC DELEGATED CO-COMMISSIONING,RUSTLINGS ROAD MEDICAL CENTRE,36298741,"1,312.50",S11 7AB
Department of Health,NHS Sheffield CCG,30/04/2021,C&M-PMS Contract Value,PRC DELEGATED CO-COMMISSIONING,SLOAN MEDICAL CENTRE,36298743,"102,117.85",S8 0YH
Department of Health,NHS Sheffield CCG,30/04/2021,C&M-PMS PCO Locum Adop/Pat/Mat,PRC DELEGATED CO-COMMISSIONING,SLOAN MEDICAL CENTRE,36298743,"5,346.60",S8 0YH
Department of Health,NHS Sheffield CCG,30/04/2021,C&M-PMS PCO Locum Sickness,PRC DELEGATED CO-COMMISSIONING,SLOAN MEDICAL CENTRE,36298743,"3,739.30",S8 0YH
Department of Health,NHS Sheffield CCG,30/04/2021,C&M-PMS Prem Actual Rent,PRC DELEGATED CO-COMMISSIONING,SLOAN MEDICAL CENTRE,36298743,"47,912.50",S8 0YH
Department of Health,NHS Sheffield CCG,30/04/2021,C&M-PMS Prem Notional Rent,PRC DELEGATED CO-COMMISSIONING,SLOAN MEDICAL CENTRE,36298743,747.5,S8 0YH
Department of Health,NHS Sheffield CCG,30/04/2021,C&M-PMS Contract Value,PRC DELEGATED CO-COMMISSIONING,SOTHALL MEDICAL CENTRE,36298745,"76,204.43",S20 1HQ
Department of Health,NHS Sheffield CCG,30/04/2021,C&M-PMS Prem Notional Rent,PRC DELEGATED CO-COMMISSIONING,SOTHALL MEDICAL CENTRE,36298745,"5,116.67",S20 1HQ
Department of Health,NHS Sheffield CCG,30/04/2021,C&M-PMS Prem Rates,PRC DELEGATED CO-COMMISSIONING,SOTHALL MEDICAL CENTRE,36298745,621.34,S20 1HQ
Department of Health,NHS Sheffield CCG,30/04/2021,C&M-PMS Prem Water Rates,PRC DELEGATED CO-COMMISSIONING,SOTHALL MEDICAL CENTRE,36298745,79.44,S20 1HQ
Department of Health,NHS Sheffield CCG,30/04/2021,C&M-PMS Contract Value,PRC DELEGATED CO-COMMISSIONING,UNIVERSITY HEALTH SERVICE,36298749,"202,981.57",S3 7QP
Department of Health,NHS Sheffield CCG,30/04/2021,C&M-PMS DES Extended Hours Access,PRC DELEGATED CO-COMMISSIONING,UNIVERSITY HEALTH SERVICE,36298749,"4,876.32",S3 7QP
Department of Health,NHS Sheffield CCG,30/04/2021,C&M-PMS PCN DES Clinical Director,PRC DELEGATED CO-COMMISSIONING,UNIVERSITY HEALTH SERVICE,36298749,"2,492.34",S3 7QP
Department of Health,NHS Sheffield CCG,30/04/2021,C&M-PMS PCN DES PCN support,LOCAL ENHANCED SERVICES,UNIVERSITY HEALTH SERVICE,36298749,"5,079.50",S3 7QP
Department of Health,NHS Sheffield CCG,30/04/2021,C&M-PMS PCO Locum Sickness,PRC DELEGATED CO-COMMISSIONING,UNIVERSITY HEALTH SERVICE,36298749,"5,254.56",S3 7QP
Department of Health,NHS Sheffield CCG,30/04/2021,C&M-PMS Prem Notional Rent,PRC DELEGATED CO-COMMISSIONING,UNIVERSITY HEALTH SERVICE,36298749,"15,833.33",S3 7QP
Department of Health,NHS Sheffield CCG,30/04/2021,C&M-PMS Prem Water Rates,PRC DELEGATED CO-COMMISSIONING,UNIVERSITY HEALTH SERVICE,36298749,"1,208.88",S3 7QP
Department of Health,NHS Sheffield CCG,30/04/2021,C&M-PMS Contract Value,PRC DELEGATED CO-COMMISSIONING,UPWELL STREET SURGERY,36298751,"37,684.28",S4 8AN
Department of Health,NHS Sheffield CCG,30/04/2021,C&M-PMS Funding Differential Review,PRC DELEGATED CO-COMMISSIONING,UPWELL STREET SURGERY,36298751,911.19,S4 8AN
Department of Health,NHS Sheffield CCG,30/04/2021,C&M-PMS Prem Notional Rent,PRC DELEGATED CO-COMMISSIONING,UPWELL STREET SURGERY,36298751,"8,137.50",S4 8AN
Department of Health,NHS Sheffield CCG,30/04/2021,C&M-PMS Prem Rates,PRC DELEGATED CO-COMMISSIONING,UPWELL STREET SURGERY,36298751,998,S4 8AN
Department of Health,NHS Sheffield CCG,30/04/2021,C&M-PMS Contract Value,PRC DELEGATED CO-COMMISSIONING,VALLEY MEDICAL CENTRE,36298753,"84,271.12",S36 1BX
Department of Health,NHS Sheffield CCG,30/04/2021,C&M-PMS DES Extended Hours Access,PRC DELEGATED CO-COMMISSIONING,VALLEY MEDICAL CENTRE,36298753,"2,477.40",S36 1BX
Department of Health,NHS Sheffield CCG,30/04/2021,C&M-PMS PCN DES Clinical Director,PRC DELEGATED CO-COMMISSIONING,VALLEY MEDICAL CENTRE,36298753,"1,266.23",S36 1BX
Department of Health,NHS Sheffield CCG,30/04/2021,C&M-PMS PCN DES PCN support,LOCAL ENHANCED SERVICES,VALLEY MEDICAL CENTRE,36298753,"2,580.63",S36 1BX
Department of Health,NHS Sheffield CCG,30/04/2021,C&M-PMS PCO Locum Adop/Pat/Mat,PRC DELEGATED CO-COMMISSIONING,VALLEY MEDICAL CENTRE,36298753,"6,000.00",S36 1BX
Department of Health,NHS Sheffield CCG,30/04/2021,C&M-PMS Prem Rates,PRC DELEGATED CO-COMMISSIONING,VALLEY MEDICAL CENTRE,36298753,659.18,S36 1BX
Department of Health,NHS Sheffield CCG,30/04/2021,C&M-PMS Prem Water Rates,PRC DELEGATED CO-COMMISSIONING,VALLEY MEDICAL CENTRE,36298753,75.29,S36 1BX
Department of Health,NHS Sheffield CCG,30/04/2021,C&M-PMS Contract Value,PRC DELEGATED CO-COMMISSIONING,WINCOBANK MEDICAL CENTRE,36298756,"65,910.29",S9 1DJ
Department of Health,NHS Sheffield CCG,30/04/2021,C&M-PMS Prem Healthcentre Rent,PRC DELEGATED CO-COMMISSIONING,WINCOBANK MEDICAL CENTRE,36298756,"46,340.33",S9 1DJ
Department of Health,NHS Sheffield CCG,30/04/2021,C&M-PMS Contract Value,PRC DELEGATED CO-COMMISSIONING,FOXHILL MEDICAL CENTRE SHEFFIELD,36298758,"53,451.66",S6 1GA
Department of Health,NHS Sheffield CCG,30/04/2021,C&M-PMS Funding Differential Review,PRC DELEGATED CO-COMMISSIONING,FOXHILL MEDICAL CENTRE SHEFFIELD,36298758,"1,157.94",S6 1GA
Department of Health,NHS Sheffield CCG,30/04/2021,C&M-PMS Prem Healthcentre Rent,PRC DELEGATED CO-COMMISSIONING,FOXHILL MEDICAL CENTRE SHEFFIELD,36298758,"47,880.58",S6 1GA
Department of Health,NHS Sheffield CCG,30/04/2021,C&M-PMS GP Statutory Levy,PRC DELEGATED CO-COMMISSIONING,FORGE HEALTH GROUP,36298759,-520.49,S3 9DL
Department of Health,NHS Sheffield CCG,30/04/2021,C&M-PMS Out of Hours Opt Outs,PRC DELEGATED CO-COMMISSIONING,FORGE HEALTH GROUP,36298759,"-5,970.61",S3 9DL
Department of Health,NHS Sheffield CCG,30/04/2021,C&M-PMS Contract Value,PRC DELEGATED CO-COMMISSIONING,FORGE HEALTH GROUP,36298760,"127,005.63",S3 9DL
Department of Health,NHS Sheffield CCG,30/04/2021,C&M-PMS DES Extended Hours Access,PRC DELEGATED CO-COMMISSIONING,FORGE HEALTH GROUP,36298760,"6,820.92",S3 9DL
Department of Health,NHS Sheffield CCG,30/04/2021,C&M-PMS PCN DES Clinical Director,PRC DELEGATED CO-COMMISSIONING,FORGE HEALTH GROUP,36298760,"3,486.25",S3 9DL
Department of Health,NHS Sheffield CCG,30/04/2021,C&M-PMS PCN DES PCN support,LOCAL ENHANCED SERVICES,FORGE HEALTH GROUP,36298760,"7,105.13",S3 9DL
Department of Health,NHS Sheffield CCG,30/04/2021,C&M-PMS Prem Healthcentre Rent,PRC DELEGATED CO-COMMISSIONING,FORGE HEALTH GROUP,36298760,"34,544.96",S3 9DL
Department of Health,NHS Sheffield CCG,30/04/2021,C&M-PMS Prem Notional Rent,PRC DELEGATED CO-COMMISSIONING,FORGE HEALTH GROUP,36298760,"9,891.67",S3 9DL
Department of Health,NHS Sheffield CCG,30/04/2021,C&M-APMS Contract Value,PRC DELEGATED CO-COMMISSIONING,CLOVER CITY PRACTICE,36298762,"32,689.58",S9 4QH
Department of Health,NHS Sheffield CCG,30/04/2021,C&M-PMS Contract Value,PRC DELEGATED CO-COMMISSIONING,WOODSEATS MEDICAL CENTRE,36305494,"84,587.39",S8 0SH
Department of Health,NHS Sheffield CCG,30/04/2021,C&M-PMS Prem Notional Rent,PRC DELEGATED CO-COMMISSIONING,WOODSEATS MEDICAL CENTRE,36305494,"11,666.67",S8 0SH
Department of Health,NHS Sheffield CCG,30/04/2021,C&M-PMS Contract Value,PRC DELEGATED CO-COMMISSIONING,MANOR & PARK GROUP PRACTICE,36305547,"73,683.38",S2 5QQ
Department of Health,NHS Sheffield CCG,30/04/2021,C&M-PMS Out of Hours Opt Outs,PRC DELEGATED CO-COMMISSIONING,MANOR & PARK GROUP PRACTICE,36305547,"18,032.70",S2 5QQ
Department of Health,NHS Sheffield CCG,30/04/2021,C&M-PMS Prem Notional Rent,PRC DELEGATED CO-COMMISSIONING,MANOR & PARK GROUP PRACTICE,36305547,"9,112.50",S2 5QQ
Department of Health,NHS Sheffield CCG,30/04/2021,FM Computer Contracts,PRIMARY CARE IT,DELL CORPORATION LTD,36307039,"23,000.00",RG12 1LF
Department of Health,NHS Sheffield CCG,30/04/2021,FM Computer Contracts,PRIMARY CARE IT,DELL CORPORATION LTD,36307039,"4,600.00",RG12 1LF
Department of Health,NHS Sheffield CCG,30/04/2021,C&M-APMS Contract Value,PRC DELEGATED CO-COMMISSIONING,CLOVER GROUP PRACTICE,36322396,"126,289.47",S9 4QH
Department of Health,NHS Sheffield CCG,30/04/2021,C&M-APMS Prem Actual Rent,PRC DELEGATED CO-COMMISSIONING,CLOVER GROUP PRACTICE,36322396,"5,169.68",S9 4QH
Department of Health,NHS Sheffield CCG,30/04/2021,C&M-PMS Prem Healthcentre Rent,PRC DELEGATED CO-COMMISSIONING,CLOVER GROUP PRACTICE,36322396,"49,592.83",S9 4QH
Department of Health,NHS Sheffield CCG,30/04/2021,C&M-PMS Prem Notional Rent,PRC DELEGATED CO-COMMISSIONING,CLOVER GROUP PRACTICE,36322396,"2,804.17",S9 4QH
Department of Health,NHS Sheffield CCG,30/04/2021,C&M-PMS Contract Value,PRC DELEGATED CO-COMMISSIONING,MEADOWHEAD GROUP PRACTICE,36322399,"146,609.82",S8 7RL
Department of Health,NHS Sheffield CCG,30/04/2021,C&M-PMS DES Learn Dsblty Hlth Chk,PRC DELEGATED CO-COMMISSIONING,MEADOWHEAD GROUP PRACTICE,36322399,"1,540.00",S8 7RL
Department of Health,NHS Sheffield CCG,30/04/2021,C&M-PMS Funding Differential Review,PRC DELEGATED CO-COMMISSIONING,MEADOWHEAD GROUP PRACTICE,36322399,"1,641.85",S8 7RL
Department of Health,NHS Sheffield CCG,30/04/2021,C&M-PMS Prem Actual Rent,PRC DELEGATED CO-COMMISSIONING,MEADOWHEAD GROUP PRACTICE,36322399,"3,358.33",S8 7RL
Department of Health,NHS Sheffield CCG,30/04/2021,C&M-PMS Prem Cost Rent,PRC DELEGATED CO-COMMISSIONING,MEADOWHEAD GROUP PRACTICE,36322399,"3,647.42",S8 7RL
Department of Health,NHS Sheffield CCG,30/04/2021,C&M-PMS Prem Healthcentre Rent,PRC DELEGATED CO-COMMISSIONING,MEADOWHEAD GROUP PRACTICE,36322399,"41,665.03",S8 7RL
Department of Health,NHS Sheffield CCG,30/04/2021,C&M-PMS Prem Notional Rent,PRC DELEGATED CO-COMMISSIONING,MEADOWHEAD GROUP PRACTICE,36322399,"5,546.67",S8 7RL
Department of Health,NHS Sheffield CCG,30/04/2021,C&M-PMS Contract Value,PRC DELEGATED CO-COMMISSIONING,SOUTHEY GREEN MEDICAL CENTRE,36322409,"26,049.77",S5 7QB
Department of Health,NHS Sheffield CCG,30/04/2021,C&M-PMS Funding Differential Review,PRC DELEGATED CO-COMMISSIONING,SOUTHEY GREEN MEDICAL CENTRE,36322409,612.28,S5 7QB
Department of Health,NHS Sheffield CCG,30/04/2021,C&M-PMS Prem Notional Rent,PRC DELEGATED CO-COMMISSIONING,SOUTHEY GREEN MEDICAL CENTRE,36322409,"3,362.50",S5 7QB
Department of Health,NHS Sheffield CCG,30/04/2021,ME - PMS GP Prior Year ERs,PRC DELEGATED CO-COMMISSIONING,SOUTHEY GREEN MEDICAL CENTRE,36322409,830.27,S5 7QB
Department of Health,NHS Sheffield CCG,30/04/2021,C&M-APMS Prem Notional Rent,PRC DELEGATED CO-COMMISSIONING,WOODHOUSE HEALTH CENTRE,36322412,"6,338.58",S13 7LY
Department of Health,NHS Sheffield CCG,30/04/2021,C&M-PMS Contract Value,PRC DELEGATED CO-COMMISSIONING,WOODHOUSE HEALTH CENTRE,36322412,"103,951.25",S13 7LY
Department of Health,NHS Sheffield CCG,30/04/2021,C&M-PMS Funding Differential Review,PRC DELEGATED CO-COMMISSIONING,WOODHOUSE HEALTH CENTRE,36322412,"2,095.91",S13 7LY
Department of Health,NHS Sheffield CCG,30/04/2021,Clinical&Medical-Voluntary Sector,HOSPICES,ST LUKES HOSPICE,36327514,"2,701,489.00",S11 9NE
Department of Health,NHS Sheffield CCG,30/04/2021,Hcare Srv Rec NHS Trust-Contract Baseline,ACUTE COMMISSIONING,LEEDS TEACHING HOSPITALS NHS TRUST,36332548,"47,860.51",LS9 7TF
Department of Health,NHS Sheffield CCG,30/04/2021,Cont Care- Adult 100% Fully Funded,CHC ADULT FULLY FUNDED,SOUTH YORKSHIRE HOUSING ASSOCIATION LTD,36332747,"25,500.00",S1 4HF
Department of Health,NHS Sheffield CCG,30/04/2021,Cont Care- Adult 100% Fully Funded,CHC ADULT FULLY FUNDED,SOUTH YORKSHIRE HOUSING ASSOCIATION LTD,36332748,"46,763.59",S1 4HF
Department of Health,NHS Sheffield CCG,30/04/2021,Clinical&Medical-Independent Sector,MENTAL HEALTH CONTRACTS,SUSASH GB LTD T/A EAGLE HOUSE,36332749,"30,091.75",S11 8NP
Department of Health,NHS Sheffield CCG,30/04/2021,Clinical&Medical-Independent Sector,MENTAL HEALTH CONTRACTS,SOUTH YORKSHIRE HOUSING ASSOCIATION LTD,36332750,"34,434.83",S1 4HF
Department of Health,NHS Sheffield CCG,30/04/2021,Participation Fees,CLINICAL LEADS,DONCASTER AND BASSETLAW HOSPITALS NHS FOUNDATION TRUST,36335500,"68,000.00",WF3 1WE
Department of Health,NHS Sheffield CCG,30/04/2021,Participation Fees,CLINICAL LEADS,NHS ROTHERHAM CCG,36335507,"73,000.00",WF3 1WE
Department of Health,NHS Sheffield CCG,30/04/2021,C&M-APMS DES Violent Patients,PRC DELEGATED CO-COMMISSIONING,PRIMARY CARE SHEFFIELD LTD,36335508,"75,600.00",S9 4EU
Department of Health,NHS Sheffield CCG,30/04/2021,Clinical&Medical-Independent Sector,ACUTE COMMISSIONING,SPAMEDICA LTD,36335511,"-56,660.49",M15 4SQ
Department of Health,NHS Sheffield CCG,30/04/2021,Participation Fees,CLINICAL LEADS,ROTHERHAM DONCASTER AND SOUTH HUMBER NHS FOUNDATION TRUST,36335560,"26,000.00",DN4 8QN
Department of Health,NHS Sheffield CCG,30/04/2021,Clinical&Medical-Independent Sector,ACUTE COMMISSIONING,SPAMEDICA LTD,36347969,"56,660.49",M15 4SQ
Department of Health,NHS Sheffield CCG,30/04/2021,Participation Fees,BEREAVEMENT SERVICE,PRIMARY CARE DONCASTER LTD,36348012,"333,000.00",DN4 8QN
Department of Health,NHS Sheffield CCG,30/04/2021,Cont Care- Prior Year Payments,CHC ADULT FULLY FUNDED,SHEFFIELD CITY COUNCIL,36353491,"34,231.10",S1 1UJ
Department of Health,NHS Sheffield CCG,30/04/2021,Cont Care-Physical Disab (65+),CHC ADULT FULLY FUNDED,SHEFFIELD CITY COUNCIL,36353492,"904,167.17",S1 1UJ
Department of Health,NHS Sheffield CCG,30/04/2021,Cont Care- Prior Year Payments,Children's Continuing Care,SHEFFIELD CITY COUNCIL,36353493,"310,990.07",S1 1UJ
Department of Health,NHS Sheffield CCG,30/04/2021,Cont Care- Children,CHC CHILDREN,SHEFFIELD CITY COUNCIL,36353494,"126,417.49",S1 1UJ
Department of Health,NHS Sheffield CCG,30/04/2021,Cont Care-Funded Nursing Care Allow,FUNDED NURSING CARE,PRIORY GROUP LTD,36373626,"26,532.00",DL2 1TS
Department of Health,NHS Sheffield CCG,30/04/2021,Cont Care-Funded Nursing Care Allow,FUNDED NURSING CARE,ROSEBERRY CARE CENTRES,36373639,"35,176.12",S5 6AB
Department of Health,NHS Sheffield CCG,30/04/2021,Cont Care-Funded Nursing Care Allow,FUNDED NURSING CARE,BONDCARE,36373646,"28,944.00",NW4 4EF
Department of Health,NHS Sheffield CCG,30/04/2021,Cont Care- Prior Year Payments,CHC ADULT FULLY FUNDED,WILLOWBECK HEALTH CARE LTD,36373671,"43,818.98",S4 8AR
Department of Health,NHS Sheffield CCG,30/04/2021,Cont Care-Physical Disab (<65),CHC ADULT FULLY FUNDED,SOUTH YORKSHIRE HOUSING ASSOCIATION LTD,36373693,"68,179.82",S35 1RQ
Department of Health,NHS Sheffield CCG,30/04/2021,Cont Care-Physical Disab (<65),CHC ADULT FULLY FUNDED,FAIRWINDS HEALTH CARE LTD,36373696,"39,011.53",S61 1AJ
Department of Health,NHS Sheffield CCG,30/04/2021,Cont Care-Physical Disab (<65),CHC ADULT FULLY FUNDED,LONGLEY HEALTH CARE LTD,36373700,"103,823.98",S5 7JZ
Department of Health,NHS Sheffield CCG,30/04/2021,Cont Care-Physical Disab (<65),CHC ADULT FULLY FUNDED,SCARSDALE GRANGE NURSING HOME,36373712,"34,869.18",S8 9EQ
Department of Health,NHS Sheffield CCG,30/04/2021,Cont Care-Physical Disab (<65),CHC ADULT FULLY FUNDED,SEVEN HILLS NURSING HOME,36373713,"41,189.68",S11 9AA
Department of Health,NHS Sheffield CCG,30/04/2021,Cont Care-Physical Disab (<65),CHC ADULT FULLY FUNDED,WILLOWBECK HEALTH CARE LTD,36373727,"187,655.36",S4 8AR
Department of Health,NHS Sheffield CCG,30/04/2021,Cont Care-Physical Disab (<65),CHC ADULT FULLY FUNDED,ROSEBERRY CARE CENTRES,36373738,"35,231.80",S5 6AB
Department of Health,NHS Sheffield CCG,30/04/2021,Cont Care-Physical Disab (<65),CHC ADULT FULLY FUNDED,BONDCARE,36373761,"34,896.11",NW4 4EF
Department of Health,NHS Sheffield CCG,30/04/2021,Cont Care-Physical Disab (<65),CHC ADULT FULLY FUNDED,ROSEBERRY CARE CENTRES,36373764,"26,555.07",S4 7AJ
Department of Health,NHS Sheffield CCG,30/04/2021,Cont Care-Physical Disab (<65),CHC ADULT FULLY FUNDED,HORIZON CARE HOMES LTD,36373767,"27,979.16",S25 3QA
Department of Health,NHS Sheffield CCG,30/04/2021,Cont Care-Physical Disab (<65),CHC ADULT FULLY FUNDED,HORIZON CARE HOMES LTD,36373775,"79,259.71",S25 3QA
Department of Health,NHS Sheffield CCG,30/04/2021,Cont Care-Physical Disab (<65),CHC ADULT FULLY FUNDED,VALORUM CARE LTD,36373778,"33,629.87",LS19 7RW
Department of Health,NHS Sheffield CCG,30/04/2021,Cont Care-Physical Disab (<65),CHC ADULT FULLY FUNDED,INLET LTD,36373784,"65,569.39",S48NB
Department of Health,NHS Sheffield CCG,30/04/2021,Clinical&Medical-Independent Sector,Mental Health Services - S117 Mental Health,MOORVILLE RESIDENTIAL,36394723,"28,661.10",S10 5FA
Department of Health,NHS Sheffield CCG,30/04/2021,Cont Care-Learning Disab(<65),CHC ADULT FULLY FUNDED,MOORVILLE RESIDENTIAL,36394723,"8,875.80",S10 5FA
Department of Health,NHS Sheffield CCG,30/04/2021,Cont Care-Learning Disab(<65),CHC ADULT JOINT FUNDED,MOORVILLE RESIDENTIAL,36394723,"4,193.40",S10 5FA
Department of Health,NHS Sheffield CCG,30/04/2021,Cont Care-Mental Health (<65),CHC ADULT JOINT FUNDED,MOORVILLE RESIDENTIAL,36394723,489.9,S10 5FA
Department of Health,NHS Sheffield CCG,30/04/2021,Cont Care-Physical Disab (65+),CHC ADULT FULLY FUNDED,BC SHEFFIELD LTD,36394732,"40,351.38",S9 2TJ
Department of Health,NHS Sheffield CCG,30/04/2021,Cont Care-Physical Disab (65+),CHC ADULT FULLY FUNDED,ABBEYCARE NURSING,36394745,"54,600.60",S35 9YY
Department of Health,NHS Sheffield CCG,30/04/2021,External Consultancy Fees,BEREAVEMENT SERVICE,IDEAL HEALTH CONSULTANTS LTD,36394763,"54,116.77",GU1 4SJ
Department of Health,NHS Sheffield CCG,30/04/2021,Participation Fees,BEREAVEMENT SERVICE,NHS DONCASTER CCG,36394770,"91,000.00",WF3 1WE
Department of Health,NHS Sheffield CCG,30/04/2021,C&M-APMS DES Extended Hours Access,GP FORWARD VIEW,PRIMARY CARE SHEFFIELD LTD,36394786,"309,441.67",S12 3GH
Department of Health,NHS Sheffield CCG,30/04/2021,C&M-GMS LES Basket of Procedures,LOCAL ENHANCED SERVICES,PRIMARY CARE SHEFFIELD LTD,36394790,"53,558.33",S12 3GH
Department of Health,NHS Sheffield CCG,30/04/2021,Voids and Subsidies,RECHARGES NHS PROPERTY SERVICES LTD,DARNALL WELL BEING,36415617,"32,150.43",S9 4QH
Department of Health,NHS Sheffield CCG,30/04/2021,C&M-OES Childrens Schemes,LOCAL ENHANCED SERVICES,PRIMARY EYECARE SERVICES LTD,36415629,925,EC1R 0DG
Department of Health,NHS Sheffield CCG,30/04/2021,C&M-OES Intra-ocular Ocular Hypertn,LOCAL ENHANCED SERVICES,PRIMARY EYECARE SERVICES LTD,36415629,420,EC1R 0DG
Department of Health,NHS Sheffield CCG,30/04/2021,C&M-OES PEARS,LOCAL ENHANCED SERVICES,PRIMARY EYECARE SERVICES LTD,36415629,"35,641.75",EC1R 0DG
Department of Health,NHS Sheffield CCG,30/04/2021,Cont Care- Adult 100% Fully Funded,CHC ADULT FULLY FUNDED,SOUTH YORKSHIRE HOUSING ASSOCIATION LTD,36431189,"241,391.00",S1 4EB
Department of Health,NHS Sheffield CCG,30/04/2021,Cont Care- Adult 100% Fully Funded,CHC ADULT FULLY FUNDED,SOUTH YORKSHIRE HOUSING ASSOCIATION LTD,36431201,"269,305.97",S1 4EB
Department of Health,NHS Sheffield CCG,30/04/2021,Participation Fees,CLINICAL LEADS,NHS BARNSLEY CCG,36431222,"77,000.00",WF3 1WE
Department of Health,NHS Sheffield CCG,30/04/2021,Seconded-Basic Sal-Staff fm oth org,BEREAVEMENT SERVICE,DONCASTER AND BASSETLAW HOSPITALS NHS FOUNDATION TRUST,36431232,"40,077.98",WF3 1WE
Department of Health,NHS Sheffield CCG,30/04/2021,Clinical&Medical-Independent Sector,MENTAL HEALTH CONTRACTS,SOUTH YORKSHIRE HOUSING ASSOCIATION LTD,36431252,"183,646.08",S1 4EB
Department of Health,NHS Sheffield CCG,30/04/2021,Clinical&Medical-Othe Public Sector,COMMUNITY SERVICES,SHEFFIELD CITY COUNCIL,36431257,"604,000.00",S1 1UJ
Department of Health,NHS Sheffield CCG,30/04/2021,Soc Care-Joint H&C Teams/Working,COMMUNITY SERVICES,SHEFFIELD CITY COUNCIL,36431257,"16,000.00",S1 1UJ
Department of Health,NHS Sheffield CCG,30/04/2021,Participation Fees,BEREAVEMENT SERVICE,NHS DONCASTER CCG,36431264,"119,663.00",WF3 1WE
Department of Health,NHS Sheffield CCG,30/04/2021,Clinical&Medical-Othe Public Sector,COMMUNITY SERVICES,SHEFFIELD CITY COUNCIL,36431280,"150,416.67",S1 1UJ
Department of Health,NHS Sheffield CCG,30/04/2021,Clinical&Medical-Othe Public Sector,MENTAL HEALTH SERVICES - COLLABORATIVE COMMISSIONING,SHEFFIELD CITY COUNCIL,36431280,"83,669.09",S1 1UJ
Department of Health,NHS Sheffield CCG,30/04/2021,Clinical&Medical-Othe Public Sector,REABLEMENT,SHEFFIELD CITY COUNCIL,36431280,"21,808.67",S1 1UJ
Department of Health,NHS Sheffield CCG,30/04/2021,Clinical&Medical-Othe Public Sector,SAFEGUARDING,SHEFFIELD CITY COUNCIL,36431280,"16,596.33",S1 1UJ
Department of Health,NHS Sheffield CCG,30/04/2021,Cont Care-Physical Disab (65+),CHC ADULT FULLY FUNDED,SHEFFIELD CITY COUNCIL,36431280,"59,435.47",S1 1UJ
Department of Health,NHS Sheffield CCG,30/04/2021,Soc Care-Joint H&C Teams/Working,INTERMEDIATE CARE,SHEFFIELD CITY COUNCIL,36431280,"151,447.58",S1 1UJ
Department of Health,NHS Sheffield CCG,30/04/2021,Soc Care-Other Soc Care,COMMISSIONING - NON ACUTE,SHEFFIELD CITY COUNCIL,36431280,"1,635,250.00",S1 1UJ
Department of Health,NHS Sheffield CCG,30/04/2021,Soc Care-Support Prim Care,COMMUNITY SERVICES,SHEFFIELD CITY COUNCIL,36431280,"58,000.00",S1 1UJ
Department of Health,NHS Sheffield CCG,30/04/2021,Hcare Srv Rec Fdtn Trust-Contract Baseline,MENTAL HEALTH CONTRACTS,SHEFFIELD HEALTH & SOCIAL CARE NHS FOUNDATION TRUST,36431294,"-117,208.00",S10 3TH
Department of Health,NHS Sheffield CCG,30/04/2021,Services From Local Authorities,CONTINUING HEALTHCARE ASSESSMENT & SUPPORT,SHEFFIELD CITY COUNCIL,36431297,"50,000.00",S1 1UJ
Department of Health,NHS Sheffield CCG,30/04/2021,Clinical&Medical-Independent Sector,ACUTE COMMISSIONING,SPAMEDICA LTD,36431340,"162,022.09",M15 4SQ
Department of Health,NHS Sheffield CCG,30/04/2021,C&M-GMS C&M-APMS PCN DES Physician Assoc,PRC DELEGATED CO-COMMISSIONING,PRIMARY CARE SHEFFIELD LTD,36431407,"7,650.96",S9 4EU
Department of Health,NHS Sheffield CCG,30/04/2021,C&M-GMS PCN DES Clin Pharmacist,PRC DELEGATED CO-COMMISSIONING,PRIMARY CARE SHEFFIELD LTD,36431407,"9,584.52",S9 4EU
Department of Health,NHS Sheffield CCG,30/04/2021,C&M-GMS PCN DES Physiotherapist,PRC DELEGATED CO-COMMISSIONING,PRIMARY CARE SHEFFIELD LTD,36431407,"4,639.17",S9 4EU
Department of Health,NHS Sheffield CCG,30/04/2021,C&M-GMS PCN DES Soc Prescribing,PRC DELEGATED CO-COMMISSIONING,PRIMARY CARE SHEFFIELD LTD,36431407,"5,672.00",S9 4EU
Department of Health,NHS Sheffield CCG,30/04/2021,C&M-PCN DES DIETICIANS,PRC DELEGATED CO-COMMISSIONING,PRIMARY CARE SHEFFIELD LTD,36431407,"4,160.08",S9 4EU
Department of Health,NHS Sheffield CCG,30/04/2021,C&M-PCN DES HEALTH AND WELLBEING COACH,PRC DELEGATED CO-COMMISSIONING,PRIMARY CARE SHEFFIELD LTD,36431407,"1,660.37",S9 4EU
Department of Health,NHS Sheffield CCG,30/04/2021,C&M-PCN DES PHARMACY TECHNICIANS,PRC DELEGATED CO-COMMISSIONING,PRIMARY CARE SHEFFIELD LTD,36431407,"2,949.08",S9 4EU
Department of Health,NHS Sheffield CCG,30/04/2021,C&M-PCN DES PHARMACY TECHNICIANS,PRC DELEGATED CO-COMMISSIONING,FORGE HEALTH GROUP,36460493,"1,571.86",S3 9DL
Department of Health,NHS Sheffield CCG,30/04/2021,C&M-PMS C&M-APMS PCN DES Physician Assoc,PRC DELEGATED CO-COMMISSIONING,FORGE HEALTH GROUP,36460493,"3,423.93",S3 9DL
Department of Health,NHS Sheffield CCG,30/04/2021,C&M-PMS PCN DES Clin Pharmacist,PRC DELEGATED CO-COMMISSIONING,FORGE HEALTH GROUP,36460493,"25,418.01",S3 9DL
Department of Health,NHS Sheffield CCG,30/04/2021,C&M-PMS PCN DES Physiotherapist,PRC DELEGATED CO-COMMISSIONING,FORGE HEALTH GROUP,36460493,"3,651.03",S3 9DL
Department of Health,NHS Sheffield CCG,30/04/2021,C&M-PMS PCN DES Soc Prescribing,PRC DELEGATED CO-COMMISSIONING,FORGE HEALTH GROUP,36460493,"9,944.37",S3 9DL
Department of Health,NHS Sheffield CCG,30/04/2021,Clinical&Medical-Independent Sector,ACUTE COMMISSIONING,SPAMEDICA LTD,36476183,"113,320.97",M15 4SQ
Department of Health,NHS Sheffield CCG,30/04/2021,Service Charge,ESTATES AND FACILITIES,NHS PROPERTY SERVICES LTD,36476195,"59,949.29",EC2V 7NG
Department of Health,NHS Sheffield CCG,30/04/2021,Service Charge,RECHARGES NHS PROPERTY SERVICES LTD,NHS PROPERTY SERVICES LTD,36476195,"19,983.10",EC2V 7NG
Department of Health,NHS Sheffield CCG,30/04/2021,Rent,ESTATES AND FACILITIES,NHS PROPERTY SERVICES LTD,36476200,"107,487.83",EC2V 7NG
Department of Health,NHS Sheffield CCG,30/04/2021,Rent,RECHARGES NHS PROPERTY SERVICES LTD,NHS PROPERTY SERVICES LTD,36476200,"35,829.28",EC2V 7NG
Department of Health,NHS Sheffield CCG,30/04/2021,Service Charge,ESTATES AND FACILITIES,NHS PROPERTY SERVICES LTD,36476200,"5,374.39",EC2V 7NG
Department of Health,NHS Sheffield CCG,30/04/2021,Service Charge,RECHARGES NHS PROPERTY SERVICES LTD,NHS PROPERTY SERVICES LTD,36476200,"1,791.47",EC2V 7NG
Department of Health,NHS Sheffield CCG,30/04/2021,Clinical&Medical-Independent Sector,ACUTE COMMISSIONING,BMI HEALTHCARE LTD,36476218,"47,095.63",SK3 0XN
Department of Health,NHS Sheffield CCG,30/04/2021,Participation Fees,CLINICAL LEADS,ROTHERHAM NHS FOUNDATION TRUST,36476235,"47,000.00",S60 2UD
Department of Health,NHS Sheffield CCG,30/04/2021,Clinical&Medical-Independent Sector,ACUTE COMMISSIONING,CLAREMONT HOSPITAL,36476284,"78,839.00",S10 5UB
Department of Health,NHS Sheffield CCG,30/04/2021,Clinical&Medical-Independent Sector,ACUTE COMMISSIONING,ONEHEALTH GROUP,36476289,"71,089.92",S11 8UX
Department of Health,NHS Sheffield CCG,30/04/2021,Other Research Exp,Nursing and Quality Programme,UNIVERSITY OF SHEFFIELD,36476319,"55,769.77",S10 2TN
Department of Health,NHS Sheffield CCG,30/04/2021,C&M-PCN DES PHARMACY TECHNICIANS,PRC DELEGATED CO-COMMISSIONING,FORGE HEALTH GROUP,36476348,"1,571.86",S3 9DL
Department of Health,NHS Sheffield CCG,30/04/2021,C&M-PMS C&M-APMS PCN DES Physician Assoc,PRC DELEGATED CO-COMMISSIONING,FORGE HEALTH GROUP,36476348,"3,423.93",S3 9DL
Department of Health,NHS Sheffield CCG,30/04/2021,C&M-PMS PCN DES Clin Pharmacist,PRC DELEGATED CO-COMMISSIONING,FORGE HEALTH GROUP,36476348,"21,864.41",S3 9DL
Department of Health,NHS Sheffield CCG,30/04/2021,C&M-PMS PCN DES Physiotherapist,PRC DELEGATED CO-COMMISSIONING,FORGE HEALTH GROUP,36476348,"7,733.50",S3 9DL
Department of Health,NHS Sheffield CCG,30/04/2021,C&M-PMS PCN DES Soc Prescribing,PRC DELEGATED CO-COMMISSIONING,FORGE HEALTH GROUP,36476348,"10,510.97",S3 9DL
Department of Health,NHS Sheffield CCG,30/04/2021,C&M-GMS IT Comm Servs -GP Practices,PRIMARY CARE IT,REDCENTRIC SOLUTIONS LTD,36489434,"31,478.17",HG3 1UG
Department of Health,NHS Sheffield CCG,30/04/2021,C&M-GMS Global Sum,PRC DELEGATED CO-COMMISSIONING,BASLOW ROAD & SHOREHAM STREET SURGERIES,36494851,"101,568.79",S17 4DR
Department of Health,NHS Sheffield CCG,30/04/2021,C&M-GMS PCN DES Participation,PRC DELEGATED CO-COMMISSIONING,BASLOW ROAD & SHOREHAM STREET SURGERIES,36494851,"1,987.75",S17 4DR
Department of Health,NHS Sheffield CCG,30/04/2021,C&M-GMS Prem Notional Rent,PRC DELEGATED CO-COMMISSIONING,BASLOW ROAD & SHOREHAM STREET SURGERIES,36494851,"8,222.71",S17 4DR
Department of Health,NHS Sheffield CCG,30/04/2021,C&M-GMS QOF Aspiration,PRC DELEGATED CO-COMMISSIONING,BASLOW ROAD & SHOREHAM STREET SURGERIES,36494851,"10,432.72",S17 4DR
Department of Health,NHS Sheffield CCG,30/04/2021,C&M-GMS Cost of Drugs -Prescribing,LOCAL ENHANCED SERVICES,BUCHANAN ROAD SURGERY,36494854,104.75,S5 8AL
Department of Health,NHS Sheffield CCG,30/04/2021,C&M-GMS Global Sum,PRC DELEGATED CO-COMMISSIONING,BUCHANAN ROAD SURGERY,36494854,"37,859.26",S5 8AL
Department of Health,NHS Sheffield CCG,30/04/2021,C&M-GMS PCN DES Participation,PRC DELEGATED CO-COMMISSIONING,BUCHANAN ROAD SURGERY,36494854,735.97,S5 8AL
Department of Health,NHS Sheffield CCG,30/04/2021,C&M-GMS Prem Notional Rent,PRC DELEGATED CO-COMMISSIONING,BUCHANAN ROAD SURGERY,36494854,"2,595.83",S5 8AL
Department of Health,NHS Sheffield CCG,30/04/2021,C&M-GMS Prem Water Rates,PRC DELEGATED CO-COMMISSIONING,BUCHANAN ROAD SURGERY,36494854,"1,577.49",S5 8AL
Department of Health,NHS Sheffield CCG,30/04/2021,C&M-GMS Prof Fees Prescribing,PRC DELEGATED CO-COMMISSIONING,BUCHANAN ROAD SURGERY,36494854,40.04,S5 8AL
Department of Health,NHS Sheffield CCG,30/04/2021,C&M-GMS QOF Aspiration,PRC DELEGATED CO-COMMISSIONING,BUCHANAN ROAD SURGERY,36494854,"4,712.78",S5 8AL
Department of Health,NHS Sheffield CCG,30/04/2021,C&M-GMS Cost of Drugs -Prescribing,LOCAL ENHANCED SERVICES,BROOMHILL SURGERY,36494858,"2,978.21",S10 5BU
Department of Health,NHS Sheffield CCG,30/04/2021,C&M-GMS Global Sum,PRC DELEGATED CO-COMMISSIONING,BROOMHILL SURGERY,36494858,"68,591.08",S10 5BU
Department of Health,NHS Sheffield CCG,30/04/2021,C&M-GMS PCN DES Participation,PRC DELEGATED CO-COMMISSIONING,BROOMHILL SURGERY,36494858,"1,331.86",S10 5BU
Department of Health,NHS Sheffield CCG,30/04/2021,C&M-GMS Prem Cost Rent,PRC DELEGATED CO-COMMISSIONING,BROOMHILL SURGERY,36494858,"6,986.42",S10 5BU
Department of Health,NHS Sheffield CCG,30/04/2021,C&M-GMS Prem Notional Rent,PRC DELEGATED CO-COMMISSIONING,BROOMHILL SURGERY,36494858,"2,612.50",S10 5BU
Department of Health,NHS Sheffield CCG,30/04/2021,C&M-GMS Prof Fees Prescribing,PRC DELEGATED CO-COMMISSIONING,BROOMHILL SURGERY,36494858,109.44,S10 5BU
Department of Health,NHS Sheffield CCG,30/04/2021,C&M-GMS QOF Aspiration,PRC DELEGATED CO-COMMISSIONING,BROOMHILL SURGERY,36494858,"7,198.65",S10 5BU
Department of Health,NHS Sheffield CCG,30/04/2021,C&M-GMS Cost of Drugs -Prescribing,LOCAL ENHANCED SERVICES,CHARNOCK HEALTH PRIMARY CARE CENTRE,36494860,656.18,S12 3GH
Department of Health,NHS Sheffield CCG,30/04/2021,C&M-GMS Global Sum,PRC DELEGATED CO-COMMISSIONING,CHARNOCK HEALTH PRIMARY CARE CENTRE,36494860,"46,381.58",S12 3GH
Department of Health,NHS Sheffield CCG,30/04/2021,C&M-GMS PCN DES Participation,PRC DELEGATED CO-COMMISSIONING,CHARNOCK HEALTH PRIMARY CARE CENTRE,36494860,894.97,S12 3GH
Department of Health,NHS Sheffield CCG,30/04/2021,C&M-GMS Prem Actual Rent,PRC DELEGATED CO-COMMISSIONING,CHARNOCK HEALTH PRIMARY CARE CENTRE,36494860,"20,400.00",S12 3GH
Department of Health,NHS Sheffield CCG,30/04/2021,C&M-GMS Prem Notional Rent,PRC DELEGATED CO-COMMISSIONING,CHARNOCK HEALTH PRIMARY CARE CENTRE,36494860,340,S12 3GH
Department of Health,NHS Sheffield CCG,30/04/2021,C&M-GMS Prem Rates,PRC DELEGATED CO-COMMISSIONING,CHARNOCK HEALTH PRIMARY CARE CENTRE,36494860,"1,161.75",S12 3GH
Department of Health,NHS Sheffield CCG,30/04/2021,C&M-GMS Prem Water Rates,PRC DELEGATED CO-COMMISSIONING,CHARNOCK HEALTH PRIMARY CARE CENTRE,36494860,95.11,S12 3GH
Department of Health,NHS Sheffield CCG,30/04/2021,C&M-GMS Prof Fees Prescribing,PRC DELEGATED CO-COMMISSIONING,CHARNOCK HEALTH PRIMARY CARE CENTRE,36494860,48.04,S12 3GH
Department of Health,NHS Sheffield CCG,30/04/2021,C&M-GMS QOF Aspiration,PRC DELEGATED CO-COMMISSIONING,CHARNOCK HEALTH PRIMARY CARE CENTRE,36494860,"5,376.78",S12 3GH
Department of Health,NHS Sheffield CCG,30/04/2021,C&M-GMS Cost of Drugs -Prescribing,LOCAL ENHANCED SERVICES,CARTERKNOWLE & DORE MEDICAL PRACTICE,36494864,"2,317.41",S7 2DW
Department of Health,NHS Sheffield CCG,30/04/2021,C&M-GMS Global Sum,PRC DELEGATED CO-COMMISSIONING,CARTERKNOWLE & DORE MEDICAL PRACTICE,36494864,"93,873.25",S7 2DW
Department of Health,NHS Sheffield CCG,30/04/2021,C&M-GMS PCN DES Participation,PRC DELEGATED CO-COMMISSIONING,CARTERKNOWLE & DORE MEDICAL PRACTICE,36494864,"1,743.60",S7 2DW
Department of Health,NHS Sheffield CCG,30/04/2021,C&M-GMS PCO Locum Sickness,PRC DELEGATED CO-COMMISSIONING,CARTERKNOWLE & DORE MEDICAL PRACTICE,36494864,"4,754.76",S7 2DW
Department of Health,NHS Sheffield CCG,30/04/2021,C&M-GMS Prem Notional Rent,PRC DELEGATED CO-COMMISSIONING,CARTERKNOWLE & DORE MEDICAL PRACTICE,36494864,"7,855.00",S7 2DW
Department of Health,NHS Sheffield CCG,30/04/2021,C&M-GMS Prof Fees Prescribing,PRC DELEGATED CO-COMMISSIONING,CARTERKNOWLE & DORE MEDICAL PRACTICE,36494864,136.13,S7 2DW
Department of Health,NHS Sheffield CCG,30/04/2021,C&M-GMS QOF Aspiration,PRC DELEGATED CO-COMMISSIONING,CARTERKNOWLE & DORE MEDICAL PRACTICE,36494864,"11,506.06",S7 2DW
Department of Health,NHS Sheffield CCG,30/04/2021,C&M-GMS Cost of Drugs -Prescribing,LOCAL ENHANCED SERVICES,CROOKES PRACTICE,36494869,102.99,S10 1GN
Department of Health,NHS Sheffield CCG,30/04/2021,C&M-GMS Global Sum,PRC DELEGATED CO-COMMISSIONING,CROOKES PRACTICE,36494869,"56,502.73",S10 1GN
Department of Health,NHS Sheffield CCG,30/04/2021,C&M-GMS PCN DES Participation,PRC DELEGATED CO-COMMISSIONING,CROOKES PRACTICE,36494869,"1,071.92",S10 1GN
Department of Health,NHS Sheffield CCG,30/04/2021,C&M-GMS Prem Notional Rent,PRC DELEGATED CO-COMMISSIONING,CROOKES PRACTICE,36494869,"3,874.67",S10 1GN
Department of Health,NHS Sheffield CCG,30/04/2021,C&M-GMS Prem Rates,PRC DELEGATED CO-COMMISSIONING,CROOKES PRACTICE,36494869,"1,538.25",S10 1GN
Department of Health,NHS Sheffield CCG,30/04/2021,C&M-GMS Prof Fees Prescribing,PRC DELEGATED CO-COMMISSIONING,CROOKES PRACTICE,36494869,34.7,S10 1GN
Department of Health,NHS Sheffield CCG,30/04/2021,C&M-GMS QOF Aspiration,PRC DELEGATED CO-COMMISSIONING,CROOKES PRACTICE,36494869,"5,386.96",S10 1GN
Department of Health,NHS Sheffield CCG,30/04/2021,C&M-GMS Cost of Drugs -Prescribing,LOCAL ENHANCED SERVICES,DEVONSHIRE GREEN MEDICAL CENTRE,36494872,109.53,S3 7SF
Department of Health,NHS Sheffield CCG,30/04/2021,C&M-GMS DES Extended Hours Access,PRC DELEGATED CO-COMMISSIONING,DEVONSHIRE GREEN MEDICAL CENTRE,36494872,"13,703.74",S3 7SF
Department of Health,NHS Sheffield CCG,30/04/2021,C&M-GMS Global Sum,PRC DELEGATED CO-COMMISSIONING,DEVONSHIRE GREEN MEDICAL CENTRE,36494872,"49,558.82",S3 7SF
Department of Health,NHS Sheffield CCG,30/04/2021,C&M-GMS PCN DES PCN support,LOCAL ENHANCED SERVICES,DEVONSHIRE GREEN MEDICAL CENTRE,36494872,"7,078.38",S3 7SF
Department of Health,NHS Sheffield CCG,30/04/2021,C&M-GMS PCN DES Participation,PRC DELEGATED CO-COMMISSIONING,DEVONSHIRE GREEN MEDICAL CENTRE,36494872,936.8,S3 7SF
Department of Health,NHS Sheffield CCG,30/04/2021,C&M-GMS Prem Notional Rent,PRC DELEGATED CO-COMMISSIONING,DEVONSHIRE GREEN MEDICAL CENTRE,36494872,"5,987.50",S3 7SF
Department of Health,NHS Sheffield CCG,30/04/2021,C&M-GMS Prem Rates,PRC DELEGATED CO-COMMISSIONING,DEVONSHIRE GREEN MEDICAL CENTRE,36494872,782.4,S3 7SF
Department of Health,NHS Sheffield CCG,30/04/2021,C&M-GMS Prof Fees Prescribing,PRC DELEGATED CO-COMMISSIONING,DEVONSHIRE GREEN MEDICAL CENTRE,36494872,37.37,S3 7SF
Department of Health,NHS Sheffield CCG,30/04/2021,C&M-GMS QOF Aspiration,PRC DELEGATED CO-COMMISSIONING,DEVONSHIRE GREEN MEDICAL CENTRE,36494872,"5,456.67",S3 7SF
Department of Health,NHS Sheffield CCG,30/04/2021,C&M-GMS GP Statutory Levy,PRC DELEGATED CO-COMMISSIONING,ECCLESFIELD GROUP PRACTICE,36494875,-301.63,S35 9XQ
Department of Health,NHS Sheffield CCG,30/04/2021,ME - GMS TPS Added Years Adj EEs,PRC DELEGATED CO-COMMISSIONING,ECCLESFIELD GROUP PRACTICE,36494875,-409.52,S35 9XQ
Department of Health,NHS Sheffield CCG,30/04/2021,C&M-GMS Cost of Drugs -Prescribing,LOCAL ENHANCED SERVICES,ECCLESFIELD GROUP PRACTICE,36494876,"1,312.98",S35 9XQ
Department of Health,NHS Sheffield CCG,30/04/2021,C&M-GMS DES Extended Hours Access,PRC DELEGATED CO-COMMISSIONING,ECCLESFIELD GROUP PRACTICE,36494876,"15,450.70",S35 9XQ
Department of Health,NHS Sheffield CCG,30/04/2021,C&M-GMS Global Sum,PRC DELEGATED CO-COMMISSIONING,ECCLESFIELD GROUP PRACTICE,36494876,"75,228.76",S35 9XQ
Department of Health,NHS Sheffield CCG,30/04/2021,C&M-GMS PCN DES Clinical Director,PRC DELEGATED CO-COMMISSIONING,ECCLESFIELD GROUP PRACTICE,36494876,"5,176.87",S35 9XQ
Department of Health,NHS Sheffield CCG,30/04/2021,C&M-GMS PCN DES PCN support,LOCAL ENHANCED SERVICES,ECCLESFIELD GROUP PRACTICE,36494876,"16,005.50",S35 9XQ
Department of Health,NHS Sheffield CCG,30/04/2021,C&M-GMS PCN DES Participation,PRC DELEGATED CO-COMMISSIONING,ECCLESFIELD GROUP PRACTICE,36494876,"1,440.90",S35 9XQ
Department of Health,NHS Sheffield CCG,30/04/2021,C&M-GMS Prem Notional Rent,PRC DELEGATED CO-COMMISSIONING,ECCLESFIELD GROUP PRACTICE,36494876,"6,805.42",S35 9XQ
Department of Health,NHS Sheffield CCG,30/04/2021,C&M-GMS Prem Rates,PRC DELEGATED CO-COMMISSIONING,ECCLESFIELD GROUP PRACTICE,36494876,"1,061.70",S35 9XQ
Department of Health,NHS Sheffield CCG,30/04/2021,C&M-GMS Prof Fees Prescribing,PRC DELEGATED CO-COMMISSIONING,ECCLESFIELD GROUP PRACTICE,36494876,184.17,S35 9XQ
Department of Health,NHS Sheffield CCG,30/04/2021,C&M-GMS QOF Aspiration,PRC DELEGATED CO-COMMISSIONING,ECCLESFIELD GROUP PRACTICE,36494876,"9,875.71",S35 9XQ
Department of Health,NHS Sheffield CCG,30/04/2021,C&M-GMS Cost of Drugs -Prescribing,LOCAL ENHANCED SERVICES,ELM LANE SURGERY,36494878,"1,588.99",S5 7TW
Department of Health,NHS Sheffield CCG,30/04/2021,C&M-GMS Global Sum,PRC DELEGATED CO-COMMISSIONING,ELM LANE SURGERY,36494878,"45,587.88",S5 7TW
Department of Health,NHS Sheffield CCG,30/04/2021,C&M-GMS PCN DES Participation,PRC DELEGATED CO-COMMISSIONING,ELM LANE SURGERY,36494878,852.69,S5 7TW
Department of Health,NHS Sheffield CCG,30/04/2021,C&M-GMS Prem Notional Rent,PRC DELEGATED CO-COMMISSIONING,ELM LANE SURGERY,36494878,"5,343.00",S5 7TW
Department of Health,NHS Sheffield CCG,30/04/2021,C&M-GMS Prof Fees Prescribing,PRC DELEGATED CO-COMMISSIONING,ELM LANE SURGERY,36494878,130.78,S5 7TW
Department of Health,NHS Sheffield CCG,30/04/2021,C&M-GMS QOF Aspiration,PRC DELEGATED CO-COMMISSIONING,ELM LANE SURGERY,36494878,"5,528.97",S5 7TW
Department of Health,NHS Sheffield CCG,30/04/2021,C&M-GMS Global Sum,PRC DELEGATED CO-COMMISSIONING,DUKE MEDICAL CENTRE,36494880,"66,063.07",S2 2TD
Department of Health,NHS Sheffield CCG,30/04/2021,C&M-GMS PCN DES Participation,PRC DELEGATED CO-COMMISSIONING,DUKE MEDICAL CENTRE,36494880,"1,157.55",S2 2TD
Department of Health,NHS Sheffield CCG,30/04/2021,C&M-GMS PCO Locum Sickness,PRC DELEGATED CO-COMMISSIONING,DUKE MEDICAL CENTRE,36494880,"8,640.00",S2 2TD
Department of Health,NHS Sheffield CCG,30/04/2021,C&M-GMS Prem Notional Rent,PRC DELEGATED CO-COMMISSIONING,DUKE MEDICAL CENTRE,36494880,"5,721.67",S2 2TD
Department of Health,NHS Sheffield CCG,30/04/2021,C&M-GMS QOF Aspiration,PRC DELEGATED CO-COMMISSIONING,DUKE MEDICAL CENTRE,36494880,"6,200.04",S2 2TD
Department of Health,NHS Sheffield CCG,30/04/2021,C&M-PMS Cost of Drugs -Prescribing,LOCAL ENHANCED SERVICES,DYKES HALL MEDICAL CENTRE,36494881,304.2,S6 4GQ
Department of Health,NHS Sheffield CCG,30/04/2021,C&M-PMS DES Extended Hours Access,PRC DELEGATED CO-COMMISSIONING,DYKES HALL MEDICAL CENTRE,36494881,"4,344.02",S6 4GQ
Department of Health,NHS Sheffield CCG,30/04/2021,C&M-PMS PCN DES Clinical Director,PRC DELEGATED CO-COMMISSIONING,DYKES HALL MEDICAL CENTRE,36494881,"4,308.12",S6 4GQ
Department of Health,NHS Sheffield CCG,30/04/2021,C&M-PMS PCN DES PCN support,LOCAL ENHANCED SERVICES,DYKES HALL MEDICAL CENTRE,36494881,"8,975.26",S6 4GQ
Department of Health,NHS Sheffield CCG,30/04/2021,C&M-PMS PCN DES Participation,PRC DELEGATED CO-COMMISSIONING,DYKES HALL MEDICAL CENTRE,36494881,"1,357.40",S6 4GQ
Department of Health,NHS Sheffield CCG,30/04/2021,C&M-PMS Prof fees Prescribing,PRC DELEGATED CO-COMMISSIONING,DYKES HALL MEDICAL CENTRE,36494881,109.42,S6 4GQ
Department of Health,NHS Sheffield CCG,30/04/2021,C&M-PMS QOF Aspiration,PRC DELEGATED CO-COMMISSIONING,DYKES HALL MEDICAL CENTRE,36494881,"9,250.23",S6 4GQ
Department of Health,NHS Sheffield CCG,30/04/2021,C&M-GMS Cost of Drugs -Prescribing,LOCAL ENHANCED SERVICES,FAR LANE MEDICAL CENTRE,36494886,78.75,S6 4FA
Department of Health,NHS Sheffield CCG,30/04/2021,C&M-GMS Global Sum,PRC DELEGATED CO-COMMISSIONING,FAR LANE MEDICAL CENTRE,36494886,"59,147.86",S6 4FA
Department of Health,NHS Sheffield CCG,30/04/2021,C&M-GMS PCN DES Participation,PRC DELEGATED CO-COMMISSIONING,FAR LANE MEDICAL CENTRE,36494886,"1,139.85",S6 4FA
Department of Health,NHS Sheffield CCG,30/04/2021,C&M-GMS Prem Notional Rent,PRC DELEGATED CO-COMMISSIONING,FAR LANE MEDICAL CENTRE,36494886,"3,504.17",S6 4FA
Department of Health,NHS Sheffield CCG,30/04/2021,C&M-GMS Prem Water Rates,PRC DELEGATED CO-COMMISSIONING,FAR LANE MEDICAL CENTRE,36494886,85.84,S6 4FA
Department of Health,NHS Sheffield CCG,30/04/2021,C&M-GMS Prof Fees Prescribing,PRC DELEGATED CO-COMMISSIONING,FAR LANE MEDICAL CENTRE,36494886,29.37,S6 4FA
Department of Health,NHS Sheffield CCG,30/04/2021,C&M-GMS QOF Aspiration,PRC DELEGATED CO-COMMISSIONING,FAR LANE MEDICAL CENTRE,36494886,"6,731.03",S6 4FA
Department of Health,NHS Sheffield CCG,30/04/2021,ME - GMS GP Prior Year ERs,PRC DELEGATED CO-COMMISSIONING,FAR LANE MEDICAL CENTRE,36494886,863.27,S6 4FA
Department of Health,NHS Sheffield CCG,30/04/2021,C&M-GMS Cost of Drugs -Prescribing,LOCAL ENHANCED SERVICES,HANDSWORTH MEDICAL PRACTICE SHEFFIELD,36494892,374.24,S13 9BZ
Department of Health,NHS Sheffield CCG,30/04/2021,C&M-GMS Global Sum,PRC DELEGATED CO-COMMISSIONING,HANDSWORTH MEDICAL PRACTICE SHEFFIELD,36494892,"84,854.96",S13 9BZ
Department of Health,NHS Sheffield CCG,30/04/2021,C&M-GMS PCN DES Participation,PRC DELEGATED CO-COMMISSIONING,HANDSWORTH MEDICAL PRACTICE SHEFFIELD,36494892,"1,602.51",S13 9BZ
Department of Health,NHS Sheffield CCG,30/04/2021,C&M-GMS Prem Notional Rent,PRC DELEGATED CO-COMMISSIONING,HANDSWORTH MEDICAL PRACTICE SHEFFIELD,36494892,"3,321.66",S13 9BZ
Department of Health,NHS Sheffield CCG,30/04/2021,C&M-GMS Prem Rates,PRC DELEGATED CO-COMMISSIONING,HANDSWORTH MEDICAL PRACTICE SHEFFIELD,36494892,"12,998.95",S13 9BZ
Department of Health,NHS Sheffield CCG,30/04/2021,C&M-GMS Prof Fees Prescribing,PRC DELEGATED CO-COMMISSIONING,HANDSWORTH MEDICAL PRACTICE SHEFFIELD,36494892,181.49,S13 9BZ
Department of Health,NHS Sheffield CCG,30/04/2021,C&M-GMS QOF Aspiration,PRC DELEGATED CO-COMMISSIONING,HANDSWORTH MEDICAL PRACTICE SHEFFIELD,36494892,"8,712.67",S13 9BZ
Department of Health,NHS Sheffield CCG,30/04/2021,C&M-GMS Cost of Drugs -Prescribing,LOCAL ENHANCED SERVICES,GRENOSIDE SURGERY,36494894,"2,167.27",S35 8NX
Department of Health,NHS Sheffield CCG,30/04/2021,C&M-GMS Global Sum,PRC DELEGATED CO-COMMISSIONING,GRENOSIDE SURGERY,36494894,"65,655.08",S35 8NX
Department of Health,NHS Sheffield CCG,30/04/2021,C&M-GMS PCN DES Participation,PRC DELEGATED CO-COMMISSIONING,GRENOSIDE SURGERY,36494894,"1,222.16",S35 8NX
Department of Health,NHS Sheffield CCG,30/04/2021,C&M-GMS PCO Other,PRC DELEGATED CO-COMMISSIONING,GRENOSIDE SURGERY,36494894,492.7,S35 8NX
Department of Health,NHS Sheffield CCG,30/04/2021,C&M-GMS Prem Notional Rent,PRC DELEGATED CO-COMMISSIONING,GRENOSIDE SURGERY,36494894,"8,110.42",S35 8NX
Department of Health,NHS Sheffield CCG,30/04/2021,C&M-GMS Prem Rates,PRC DELEGATED CO-COMMISSIONING,GRENOSIDE SURGERY,36494894,"1,619.50",S35 8NX
Department of Health,NHS Sheffield CCG,30/04/2021,C&M-GMS Prof Fees Prescribing,PRC DELEGATED CO-COMMISSIONING,GRENOSIDE SURGERY,36494894,128.11,S35 8NX
Department of Health,NHS Sheffield CCG,30/04/2021,C&M-GMS QOF Aspiration,PRC DELEGATED CO-COMMISSIONING,GRENOSIDE SURGERY,36494894,"6,590.43",S35 8NX
Department of Health,NHS Sheffield CCG,30/04/2021,C&M-GMS Cost of Drugs -Prescribing,LOCAL ENHANCED SERVICES,GREYSTONES MEDICAL CENTRE,36494896,34.92,S11 7BJ
Department of Health,NHS Sheffield CCG,30/04/2021,C&M-GMS Global Sum,PRC DELEGATED CO-COMMISSIONING,GREYSTONES MEDICAL CENTRE,36494896,"21,394.60",S11 7BJ
Department of Health,NHS Sheffield CCG,30/04/2021,C&M-GMS PCN DES Participation,PRC DELEGATED CO-COMMISSIONING,GREYSTONES MEDICAL CENTRE,36494896,407.53,S11 7BJ
Department of Health,NHS Sheffield CCG,30/04/2021,C&M-GMS Prem Notional Rent,PRC DELEGATED CO-COMMISSIONING,GREYSTONES MEDICAL CENTRE,36494896,"2,885.42",S11 7BJ
Department of Health,NHS Sheffield CCG,30/04/2021,C&M-GMS Prem Rates,PRC DELEGATED CO-COMMISSIONING,GREYSTONES MEDICAL CENTRE,36494896,428.75,S11 7BJ
Department of Health,NHS Sheffield CCG,30/04/2021,C&M-GMS Prem Water Rates,PRC DELEGATED CO-COMMISSIONING,GREYSTONES MEDICAL CENTRE,36494896,93.68,S11 7BJ
Department of Health,NHS Sheffield CCG,30/04/2021,C&M-GMS Prof Fees Prescribing,PRC DELEGATED CO-COMMISSIONING,GREYSTONES MEDICAL CENTRE,36494896,13.35,S11 7BJ
Department of Health,NHS Sheffield CCG,30/04/2021,C&M-GMS QOF Aspiration,PRC DELEGATED CO-COMMISSIONING,GREYSTONES MEDICAL CENTRE,36494896,"2,473.69",S11 7BJ
Department of Health,NHS Sheffield CCG,30/04/2021,C&M-GMS Cost of Drugs -Prescribing,LOCAL ENHANCED SERVICES,HEELEY GREEN SURGERY,36494898,"1,027.75",S2 3AJ
Department of Health,NHS Sheffield CCG,30/04/2021,C&M-GMS Global Sum,PRC DELEGATED CO-COMMISSIONING,HEELEY GREEN SURGERY,36494898,"44,606.18",S2 3AJ
Department of Health,NHS Sheffield CCG,30/04/2021,C&M-GMS PCN DES Participation,PRC DELEGATED CO-COMMISSIONING,HEELEY GREEN SURGERY,36494898,858.92,S2 3AJ
Department of Health,NHS Sheffield CCG,30/04/2021,C&M-GMS Prem Notional Rent,PRC DELEGATED CO-COMMISSIONING,HEELEY GREEN SURGERY,36494898,"3,254.17",S2 3AJ
Department of Health,NHS Sheffield CCG,30/04/2021,C&M-GMS Prem Water Rates,PRC DELEGATED CO-COMMISSIONING,HEELEY GREEN SURGERY,36494898,846,S2 3AJ
Department of Health,NHS Sheffield CCG,30/04/2021,C&M-GMS Prof Fees Prescribing,PRC DELEGATED CO-COMMISSIONING,HEELEY GREEN SURGERY,36494898,176.16,S2 3AJ
Department of Health,NHS Sheffield CCG,30/04/2021,C&M-GMS QOF Aspiration,PRC DELEGATED CO-COMMISSIONING,HEELEY GREEN SURGERY,36494898,"4,669.56",S2 3AJ
Department of Health,NHS Sheffield CCG,30/04/2021,C&M-GMS Cost of Drugs -Prescribing,LOCAL ENHANCED SERVICES,HOLLIES MEDICAL CENTRE,36494900,612.07,S11 9AL
Department of Health,NHS Sheffield CCG,30/04/2021,C&M-GMS Global Sum,PRC DELEGATED CO-COMMISSIONING,HOLLIES MEDICAL CENTRE,36494900,"67,443.78",S11 9AL
Department of Health,NHS Sheffield CCG,30/04/2021,C&M-GMS PCN DES Participation,PRC DELEGATED CO-COMMISSIONING,HOLLIES MEDICAL CENTRE,36494900,"1,248.68",S11 9AL
Department of Health,NHS Sheffield CCG,30/04/2021,C&M-GMS Prem Notional Rent,PRC DELEGATED CO-COMMISSIONING,HOLLIES MEDICAL CENTRE,36494900,"3,358.33",S11 9AL
Department of Health,NHS Sheffield CCG,30/04/2021,C&M-GMS Prof Fees Prescribing,PRC DELEGATED CO-COMMISSIONING,HOLLIES MEDICAL CENTRE,36494900,72.07,S11 9AL
Department of Health,NHS Sheffield CCG,30/04/2021,C&M-GMS QOF Aspiration,PRC DELEGATED CO-COMMISSIONING,HOLLIES MEDICAL CENTRE,36494900,"8,186.00",S11 9AL
Department of Health,NHS Sheffield CCG,30/04/2021,C&M-PMS Cost of Drugs -Prescribing,LOCAL ENHANCED SERVICES,MEADOWHEAD GROUP PRACTICE,36494902,"4,837.12",S8 7RL
Department of Health,NHS Sheffield CCG,30/04/2021,C&M-PMS PCN DES Participation,PRC DELEGATED CO-COMMISSIONING,MEADOWHEAD GROUP PRACTICE,36494902,"1,386.90",S8 7RL
Department of Health,NHS Sheffield CCG,30/04/2021,C&M-PMS Prof fees Prescribing,PRC DELEGATED CO-COMMISSIONING,MEADOWHEAD GROUP PRACTICE,36494902,403.02,S8 7RL
Department of Health,NHS Sheffield CCG,30/04/2021,C&M-PMS QOF Aspiration,PRC DELEGATED CO-COMMISSIONING,MEADOWHEAD GROUP PRACTICE,36494902,"18,549.36",S8 7RL
Department of Health,NHS Sheffield CCG,30/04/2021,C&M-GMS Cost of Drugs -Prescribing,LOCAL ENHANCED SERVICES,MEDICAL CENTRE CRYSTAL PEAKS,36494904,502.1,S20 7HZ
Department of Health,NHS Sheffield CCG,30/04/2021,C&M-GMS Global Sum,PRC DELEGATED CO-COMMISSIONING,MEDICAL CENTRE CRYSTAL PEAKS,36494904,"50,958.49",S20 7HZ
Department of Health,NHS Sheffield CCG,30/04/2021,C&M-GMS PCN DES Participation,PRC DELEGATED CO-COMMISSIONING,MEDICAL CENTRE CRYSTAL PEAKS,36494904,974.95,S20 7HZ
Department of Health,NHS Sheffield CCG,30/04/2021,C&M-GMS PCO Locum Sickness,PRC DELEGATED CO-COMMISSIONING,MEDICAL CENTRE CRYSTAL PEAKS,36494904,"3,376.40",S20 7HZ
Department of Health,NHS Sheffield CCG,30/04/2021,C&M-GMS Prem Actual Rent,PRC DELEGATED CO-COMMISSIONING,MEDICAL CENTRE CRYSTAL PEAKS,36494904,"17,610.00",S20 7HZ
Department of Health,NHS Sheffield CCG,30/04/2021,C&M-GMS Prem Notional Rent,PRC DELEGATED CO-COMMISSIONING,MEDICAL CENTRE CRYSTAL PEAKS,36494904,270,S20 7HZ
Department of Health,NHS Sheffield CCG,30/04/2021,C&M-GMS Prem Rates,PRC DELEGATED CO-COMMISSIONING,MEDICAL CENTRE CRYSTAL PEAKS,36494904,"1,071.60",S20 7HZ
Department of Health,NHS Sheffield CCG,30/04/2021,C&M-GMS Prof Fees Prescribing,PRC DELEGATED CO-COMMISSIONING,MEDICAL CENTRE CRYSTAL PEAKS,36494904,285.58,S20 7HZ
Department of Health,NHS Sheffield CCG,30/04/2021,C&M-GMS QOF Aspiration,PRC DELEGATED CO-COMMISSIONING,MEDICAL CENTRE CRYSTAL PEAKS,36494904,"7,126.18",S20 7HZ
Department of Health,NHS Sheffield CCG,30/04/2021,C&M-GMS Cost of Drugs -Prescribing,LOCAL ENHANCED SERVICES,MATHEWS PRACTICE,36494908,22.36,S2 4UJ
Department of Health,NHS Sheffield CCG,30/04/2021,C&M-GMS Global Sum,PRC DELEGATED CO-COMMISSIONING,MATHEWS PRACTICE,36494908,"59,365.24",S2 4UJ
Department of Health,NHS Sheffield CCG,30/04/2021,C&M-GMS PCN DES Participation,PRC DELEGATED CO-COMMISSIONING,MATHEWS PRACTICE,36494908,"1,191.42",S2 4UJ
Department of Health,NHS Sheffield CCG,30/04/2021,C&M-GMS PCO Other,PRC DELEGATED CO-COMMISSIONING,MATHEWS PRACTICE,36494908,"5,241.00",S2 4UJ
Department of Health,NHS Sheffield CCG,30/04/2021,C&M-GMS Prem Rates,PRC DELEGATED CO-COMMISSIONING,MATHEWS PRACTICE,36494908,"1,463.75",S2 4UJ
Department of Health,NHS Sheffield CCG,30/04/2021,C&M-GMS Prof Fees Prescribing,PRC DELEGATED CO-COMMISSIONING,MATHEWS PRACTICE,36494908,34.7,S2 4UJ
Department of Health,NHS Sheffield CCG,30/04/2021,C&M-GMS QOF Aspiration,PRC DELEGATED CO-COMMISSIONING,MATHEWS PRACTICE,36494908,"6,827.87",S2 4UJ
Department of Health,NHS Sheffield CCG,30/04/2021,C&M-GMS Cost of Drugs -Prescribing,LOCAL ENHANCED SERVICES,MILL ROAD SURGERY SHEFFIELD,36494911,217.78,S35 9XQ
Department of Health,NHS Sheffield CCG,30/04/2021,C&M-GMS Global Sum,PRC DELEGATED CO-COMMISSIONING,MILL ROAD SURGERY SHEFFIELD,36494911,"44,036.47",S35 9XQ
Department of Health,NHS Sheffield CCG,30/04/2021,C&M-GMS PCN DES Participation,PRC DELEGATED CO-COMMISSIONING,MILL ROAD SURGERY SHEFFIELD,36494911,835.46,S35 9XQ
Department of Health,NHS Sheffield CCG,30/04/2021,C&M-GMS Prem Notional Rent,PRC DELEGATED CO-COMMISSIONING,MILL ROAD SURGERY SHEFFIELD,36494911,"4,593.33",S35 9XQ
Department of Health,NHS Sheffield CCG,30/04/2021,C&M-GMS Prof Fees Prescribing,PRC DELEGATED CO-COMMISSIONING,MILL ROAD SURGERY SHEFFIELD,36494911,109.42,S35 9XQ
Department of Health,NHS Sheffield CCG,30/04/2021,C&M-GMS QOF Aspiration,PRC DELEGATED CO-COMMISSIONING,MILL ROAD SURGERY SHEFFIELD,36494911,"5,364.93",S35 9XQ
Department of Health,NHS Sheffield CCG,30/04/2021,C&M-GMS Cost of Drugs -Prescribing,LOCAL ENHANCED SERVICES,NORFOLK PARK HEALTH CENTRE,36494916,338.03,S2 3TA
Department of Health,NHS Sheffield CCG,30/04/2021,C&M-GMS Global Sum,PRC DELEGATED CO-COMMISSIONING,NORFOLK PARK HEALTH CENTRE,36494916,"44,219.75",S2 3TA
Department of Health,NHS Sheffield CCG,30/04/2021,C&M-GMS PCN DES Participation,PRC DELEGATED CO-COMMISSIONING,NORFOLK PARK HEALTH CENTRE,36494916,802.28,S2 3TA
Department of Health,NHS Sheffield CCG,30/04/2021,C&M-GMS Prem Healthcentre Rent,PRC DELEGATED CO-COMMISSIONING,NORFOLK PARK HEALTH CENTRE,36494916,"25,249.98",S2 3TA
Department of Health,NHS Sheffield CCG,30/04/2021,C&M-GMS Prof Fees Prescribing,PRC DELEGATED CO-COMMISSIONING,NORFOLK PARK HEALTH CENTRE,36494916,109.43,S2 3TA
Department of Health,NHS Sheffield CCG,30/04/2021,C&M-GMS QOF Aspiration,PRC DELEGATED CO-COMMISSIONING,NORFOLK PARK HEALTH CENTRE,36494916,"4,434.10",S2 3TA
Department of Health,NHS Sheffield CCG,30/04/2021,C&M-GMS Cost of Drugs -Prescribing,LOCAL ENHANCED SERVICES,NORWOOD MEDICAL CENTRE SHEFFIELD,36494919,131.33,S5 7HD
Department of Health,NHS Sheffield CCG,30/04/2021,C&M-GMS Global Sum,PRC DELEGATED CO-COMMISSIONING,NORWOOD MEDICAL CENTRE SHEFFIELD,36494919,"69,646.96",S5 7HD
Department of Health,NHS Sheffield CCG,30/04/2021,C&M-GMS PCN DES Participation,PRC DELEGATED CO-COMMISSIONING,NORWOOD MEDICAL CENTRE SHEFFIELD,36494919,"1,346.21",S5 7HD
Department of Health,NHS Sheffield CCG,30/04/2021,C&M-GMS Prem Notional Rent,PRC DELEGATED CO-COMMISSIONING,NORWOOD MEDICAL CENTRE SHEFFIELD,36494919,"5,187.50",S5 7HD
Department of Health,NHS Sheffield CCG,30/04/2021,C&M-GMS Prof Fees Prescribing,PRC DELEGATED CO-COMMISSIONING,NORWOOD MEDICAL CENTRE SHEFFIELD,36494919,53.38,S5 7HD
Department of Health,NHS Sheffield CCG,30/04/2021,C&M-GMS QOF Aspiration,PRC DELEGATED CO-COMMISSIONING,NORWOOD MEDICAL CENTRE SHEFFIELD,36494919,"8,469.33",S5 7HD
Department of Health,NHS Sheffield CCG,30/04/2021,C&M-GMS Cost of Drugs -Dispensing,LOCAL ENHANCED SERVICES,OUGHTIBRIDGE SURGERY,36494923,"30,777.77",S35 0FW
Department of Health,NHS Sheffield CCG,30/04/2021,C&M-GMS Dispensing Quality Sch,PRC DELEGATED CO-COMMISSIONING,OUGHTIBRIDGE SURGERY,36494923,"2,822.52",S35 0FW
Department of Health,NHS Sheffield CCG,30/04/2021,C&M-GMS Global Sum,PRC DELEGATED CO-COMMISSIONING,OUGHTIBRIDGE SURGERY,36494923,"46,639.68",S35 0FW
Department of Health,NHS Sheffield CCG,30/04/2021,C&M-GMS PCN DES Participation,PRC DELEGATED CO-COMMISSIONING,OUGHTIBRIDGE SURGERY,36494923,893.72,S35 0FW
Department of Health,NHS Sheffield CCG,30/04/2021,C&M-GMS Prem Notional Rent,PRC DELEGATED CO-COMMISSIONING,OUGHTIBRIDGE SURGERY,36494923,"4,064.58",S35 0FW
Department of Health,NHS Sheffield CCG,30/04/2021,C&M-GMS Prem Rates,PRC DELEGATED CO-COMMISSIONING,OUGHTIBRIDGE SURGERY,36494923,515.75,S35 0FW
Department of Health,NHS Sheffield CCG,30/04/2021,C&M-GMS Prem Water Rates,PRC DELEGATED CO-COMMISSIONING,OUGHTIBRIDGE SURGERY,36494923,194.71,S35 0FW
Department of Health,NHS Sheffield CCG,30/04/2021,C&M-GMS Prof Fees Dispensing,PRC DELEGATED CO-COMMISSIONING,OUGHTIBRIDGE SURGERY,36494923,"4,933.08",S35 0FW
Department of Health,NHS Sheffield CCG,30/04/2021,C&M-GMS PrscrptnChrgsColl&RmttdbyGP,LOCAL ENHANCED SERVICES,OUGHTIBRIDGE SURGERY,36494923,411.75,S35 0FW
Department of Health,NHS Sheffield CCG,30/04/2021,C&M-GMS QOF Aspiration,PRC DELEGATED CO-COMMISSIONING,OUGHTIBRIDGE SURGERY,36494923,"4,819.38",S35 0FW
Department of Health,NHS Sheffield CCG,30/04/2021,C&M-GMS Cost of Drugs -Prescribing,LOCAL ENHANCED SERVICES,SHARROW LANE MEDICAL CENTRE,36494927,217.1,S11 8AN
Department of Health,NHS Sheffield CCG,30/04/2021,C&M-GMS Global Sum,PRC DELEGATED CO-COMMISSIONING,SHARROW LANE MEDICAL CENTRE,36494927,"26,264.95",S11 8AN
Department of Health,NHS Sheffield CCG,30/04/2021,C&M-GMS PCN DES Participation,PRC DELEGATED CO-COMMISSIONING,SHARROW LANE MEDICAL CENTRE,36494927,488.76,S11 8AN
Department of Health,NHS Sheffield CCG,30/04/2021,C&M-GMS Prem Notional Rent,PRC DELEGATED CO-COMMISSIONING,SHARROW LANE MEDICAL CENTRE,36494927,"2,741.67",S11 8AN
Department of Health,NHS Sheffield CCG,30/04/2021,C&M-GMS Prof Fees Prescribing,PRC DELEGATED CO-COMMISSIONING,SHARROW LANE MEDICAL CENTRE,36494927,77.4,S11 8AN
Department of Health,NHS Sheffield CCG,30/04/2021,C&M-GMS QOF Aspiration,PRC DELEGATED CO-COMMISSIONING,SHARROW LANE MEDICAL CENTRE,36494927,"2,983.51",S11 8AN
Department of Health,NHS Sheffield CCG,30/04/2021,C&M-GMS Cost of Drugs -Prescribing,LOCAL ENHANCED SERVICES,SHIREGREEN MEDICAL CENTRE,36494935,380.3,S5 0RG
Department of Health,NHS Sheffield CCG,30/04/2021,C&M-GMS DES Learn Dsblty Hlth Chk,PRC DELEGATED CO-COMMISSIONING,SHIREGREEN MEDICAL CENTRE,36494935,560,S5 0RG
Department of Health,NHS Sheffield CCG,30/04/2021,C&M-GMS Global Sum,PRC DELEGATED CO-COMMISSIONING,SHIREGREEN MEDICAL CENTRE,36494935,"60,303.87",S5 0RG
Department of Health,NHS Sheffield CCG,30/04/2021,C&M-GMS PCN DES Participation,PRC DELEGATED CO-COMMISSIONING,SHIREGREEN MEDICAL CENTRE,36494935,"1,195.61",S5 0RG
Department of Health,NHS Sheffield CCG,30/04/2021,C&M-GMS Prem Cost Rent,PRC DELEGATED CO-COMMISSIONING,SHIREGREEN MEDICAL CENTRE,36494935,"1,792.33",S5 0RG
Department of Health,NHS Sheffield CCG,30/04/2021,C&M-GMS Prem Notional Rent,PRC DELEGATED CO-COMMISSIONING,SHIREGREEN MEDICAL CENTRE,36494935,"5,375.00",S5 0RG
Department of Health,NHS Sheffield CCG,30/04/2021,C&M-GMS Prof Fees Prescribing,PRC DELEGATED CO-COMMISSIONING,SHIREGREEN MEDICAL CENTRE,36494935,125.45,S5 0RG
Department of Health,NHS Sheffield CCG,30/04/2021,C&M-GMS QOF Aspiration,PRC DELEGATED CO-COMMISSIONING,SHIREGREEN MEDICAL CENTRE,36494935,"7,267.43",S5 0RG
Department of Health,NHS Sheffield CCG,30/04/2021,C&M-GMS Global Sum,PRC DELEGATED CO-COMMISSIONING,STONECROFT MEDICAL CENTRE,36494937,"35,459.82",S12 2LJ
Department of Health,NHS Sheffield CCG,30/04/2021,C&M-GMS PCN DES Participation,PRC DELEGATED CO-COMMISSIONING,STONECROFT MEDICAL CENTRE,36494937,669.18,S12 2LJ
Department of Health,NHS Sheffield CCG,30/04/2021,C&M-GMS Prem Notional Rent,PRC DELEGATED CO-COMMISSIONING,STONECROFT MEDICAL CENTRE,36494937,"2,808.33",S12 2LJ
Department of Health,NHS Sheffield CCG,30/04/2021,C&M-GMS Prem Rates,PRC DELEGATED CO-COMMISSIONING,STONECROFT MEDICAL CENTRE,36494937,"1,235.25",S12 2LJ
Department of Health,NHS Sheffield CCG,30/04/2021,C&M-GMS QOF Aspiration,PRC DELEGATED CO-COMMISSIONING,STONECROFT MEDICAL CENTRE,36494937,"4,286.71",S12 2LJ
Department of Health,NHS Sheffield CCG,30/04/2021,C&M-GMS Global Sum,PRC DELEGATED CO-COMMISSIONING,STANNINGTON MEDICAL CENTRE,36494939,"27,338.07",S6 6BX
Department of Health,NHS Sheffield CCG,30/04/2021,C&M-GMS Prem Notional Rent,PRC DELEGATED CO-COMMISSIONING,STANNINGTON MEDICAL CENTRE,36494939,"2,575.00",S6 6BX
Department of Health,NHS Sheffield CCG,30/04/2021,C&M-GMS Prem Water Rates,PRC DELEGATED CO-COMMISSIONING,STANNINGTON MEDICAL CENTRE,36494939,182.38,S6 6BX
Department of Health,NHS Sheffield CCG,30/04/2021,C&M-GMS QOF Aspiration,PRC DELEGATED CO-COMMISSIONING,STANNINGTON MEDICAL CENTRE,36494939,"3,194.16",S6 6BX
Department of Health,NHS Sheffield CCG,30/04/2021,C&M-GMS Cost of Drugs -Prescribing,LOCAL ENHANCED SERVICES,TOTLEY RISE MEDICAL CENTRE,36494941,310.88,S17 4DQ
Department of Health,NHS Sheffield CCG,30/04/2021,C&M-GMS Global Sum,PRC DELEGATED CO-COMMISSIONING,TOTLEY RISE MEDICAL CENTRE,36494941,"28,497.06",S17 4DQ
Department of Health,NHS Sheffield CCG,30/04/2021,C&M-GMS PCN DES Participation,PRC DELEGATED CO-COMMISSIONING,TOTLEY RISE MEDICAL CENTRE,36494941,982.55,S17 4DQ
Department of Health,NHS Sheffield CCG,30/04/2021,C&M-GMS Prem Notional Rent,PRC DELEGATED CO-COMMISSIONING,TOTLEY RISE MEDICAL CENTRE,36494941,"3,770.84",S17 4DQ
Department of Health,NHS Sheffield CCG,30/04/2021,C&M-GMS Prem Rates,PRC DELEGATED CO-COMMISSIONING,TOTLEY RISE MEDICAL CENTRE,36494941,"1,415.75",S17 4DQ
Department of Health,NHS Sheffield CCG,30/04/2021,C&M-GMS Prem Water Rates,PRC DELEGATED CO-COMMISSIONING,TOTLEY RISE MEDICAL CENTRE,36494941,686.31,S17 4DQ
Department of Health,NHS Sheffield CCG,30/04/2021,C&M-GMS Prof Fees Prescribing,PRC DELEGATED CO-COMMISSIONING,TOTLEY RISE MEDICAL CENTRE,36494941,122.78,S17 4DQ
Department of Health,NHS Sheffield CCG,30/04/2021,C&M-GMS QOF Aspiration,PRC DELEGATED CO-COMMISSIONING,TOTLEY RISE MEDICAL CENTRE,36494941,"5,457.91",S17 4DQ
Department of Health,NHS Sheffield CCG,30/04/2021,C&M-GMS Cost of Drugs -Prescribing,LOCAL ENHANCED SERVICES,TRAMWAYS MEDICAL CENTRE,36494943,"2,288.14",S6 4JQ
Department of Health,NHS Sheffield CCG,30/04/2021,C&M-GMS Global Sum,PRC DELEGATED CO-COMMISSIONING,TRAMWAYS MEDICAL CENTRE,36494943,"65,868.89",S6 4JQ
Department of Health,NHS Sheffield CCG,30/04/2021,C&M-GMS PCN DES Participation,PRC DELEGATED CO-COMMISSIONING,TRAMWAYS MEDICAL CENTRE,36494943,"1,259.53",S6 4JQ
Department of Health,NHS Sheffield CCG,30/04/2021,C&M-GMS Prem Cost Rent,PRC DELEGATED CO-COMMISSIONING,TRAMWAYS MEDICAL CENTRE,36494943,"4,012.75",S6 4JQ
Department of Health,NHS Sheffield CCG,30/04/2021,C&M-GMS Prof Fees Prescribing,PRC DELEGATED CO-COMMISSIONING,TRAMWAYS MEDICAL CENTRE,36494943,125.45,S6 4JQ
Department of Health,NHS Sheffield CCG,30/04/2021,C&M-GMS QOF Aspiration,PRC DELEGATED CO-COMMISSIONING,TRAMWAYS MEDICAL CENTRE,36494943,"6,868.56",S6 4JQ
Department of Health,NHS Sheffield CCG,30/04/2021,C&M-GMS Cost of Drugs -Prescribing,LOCAL ENHANCED SERVICES,UPPERTHORPE MEDICAL CENTRE,36494946,"2,243.14",S6 3FT
Department of Health,NHS Sheffield CCG,30/04/2021,C&M-GMS Global Sum,PRC DELEGATED CO-COMMISSIONING,UPPERTHORPE MEDICAL CENTRE,36494946,"93,186.84",S6 3FT
Department of Health,NHS Sheffield CCG,30/04/2021,C&M-GMS PCN DES Participation,PRC DELEGATED CO-COMMISSIONING,UPPERTHORPE MEDICAL CENTRE,36494946,"1,745.50",S6 3FT
Department of Health,NHS Sheffield CCG,30/04/2021,C&M-GMS PCO Other,PRC DELEGATED CO-COMMISSIONING,UPPERTHORPE MEDICAL CENTRE,36494946,"7,547.00",S6 3FT
Department of Health,NHS Sheffield CCG,30/04/2021,C&M-GMS Prem Actual Rent,PRC DELEGATED CO-COMMISSIONING,UPPERTHORPE MEDICAL CENTRE,36494946,419.5,S6 3FT
Department of Health,NHS Sheffield CCG,30/04/2021,C&M-GMS Prem Notional Rent,PRC DELEGATED CO-COMMISSIONING,UPPERTHORPE MEDICAL CENTRE,36494946,"2,128.33",S6 3FT
Department of Health,NHS Sheffield CCG,30/04/2021,C&M-GMS Prem Rates,PRC DELEGATED CO-COMMISSIONING,UPPERTHORPE MEDICAL CENTRE,36494946,"2,118.50",S6 3FT
Department of Health,NHS Sheffield CCG,30/04/2021,C&M-GMS Prof Fees Prescribing,PRC DELEGATED CO-COMMISSIONING,UPPERTHORPE MEDICAL CENTRE,36494946,189.5,S6 3FT
Department of Health,NHS Sheffield CCG,30/04/2021,C&M-GMS QOF Aspiration,PRC DELEGATED CO-COMMISSIONING,UPPERTHORPE MEDICAL CENTRE,36494946,"10,749.32",S6 3FT
Department of Health,NHS Sheffield CCG,30/04/2021,C&M-GMS Cost of Drugs -Prescribing,LOCAL ENHANCED SERVICES,WHITE HOUSE SURGERY SHEFFIELD,36494950,254.9,S2 1SL
Department of Health,NHS Sheffield CCG,30/04/2021,C&M-GMS Global Sum,PRC DELEGATED CO-COMMISSIONING,WHITE HOUSE SURGERY SHEFFIELD,36494950,"57,705.32",S2 1SL
Department of Health,NHS Sheffield CCG,30/04/2021,C&M-GMS PCN DES Participation,PRC DELEGATED CO-COMMISSIONING,WHITE HOUSE SURGERY SHEFFIELD,36494950,"1,057.13",S2 1SL
Department of Health,NHS Sheffield CCG,30/04/2021,C&M-GMS Prem Notional Rent,PRC DELEGATED CO-COMMISSIONING,WHITE HOUSE SURGERY SHEFFIELD,36494950,"9,412.50",S2 1SL
Department of Health,NHS Sheffield CCG,30/04/2021,C&M-GMS Prof Fees Prescribing,PRC DELEGATED CO-COMMISSIONING,WHITE HOUSE SURGERY SHEFFIELD,36494950,154.81,S2 1SL
Department of Health,NHS Sheffield CCG,30/04/2021,C&M-GMS QOF Aspiration,PRC DELEGATED CO-COMMISSIONING,WHITE HOUSE SURGERY SHEFFIELD,36494950,"6,755.49",S2 1SL
Department of Health,NHS Sheffield CCG,30/04/2021,C&M-GMS Cost of Drugs -Prescribing,LOCAL ENHANCED SERVICES,WALKLEY HOUSE MEDICAL CENTRE,36494952,964.03,S6 3TN
Department of Health,NHS Sheffield CCG,30/04/2021,C&M-GMS Global Sum,PRC DELEGATED CO-COMMISSIONING,WALKLEY HOUSE MEDICAL CENTRE,36494952,"93,663.02",S6 3TN
Department of Health,NHS Sheffield CCG,30/04/2021,C&M-GMS PCN DES Participation,PRC DELEGATED CO-COMMISSIONING,WALKLEY HOUSE MEDICAL CENTRE,36494952,"1,762.54",S6 3TN
Department of Health,NHS Sheffield CCG,30/04/2021,C&M-GMS Prem Notional Rent,PRC DELEGATED CO-COMMISSIONING,WALKLEY HOUSE MEDICAL CENTRE,36494952,"5,635.50",S6 3TN
Department of Health,NHS Sheffield CCG,30/04/2021,C&M-GMS Prof Fees Prescribing,PRC DELEGATED CO-COMMISSIONING,WALKLEY HOUSE MEDICAL CENTRE,36494952,152.13,S6 3TN
Department of Health,NHS Sheffield CCG,30/04/2021,C&M-GMS QOF Aspiration,PRC DELEGATED CO-COMMISSIONING,WALKLEY HOUSE MEDICAL CENTRE,36494952,"9,789.79",S6 3TN
Department of Health,NHS Sheffield CCG,30/04/2021,C&M-PMS Cost of Drugs -Prescribing,LOCAL ENHANCED SERVICES,FORGE HEALTH GROUP,36494956,998.16,S3 9DL
Department of Health,NHS Sheffield CCG,30/04/2021,C&M-PMS DES Extended Hours Access,PRC DELEGATED CO-COMMISSIONING,FORGE HEALTH GROUP,36494956,"13,717.78",S3 9DL
Department of Health,NHS Sheffield CCG,30/04/2021,C&M-PMS DES Learn Dsblty Hlth Chk,PRC DELEGATED CO-COMMISSIONING,FORGE HEALTH GROUP,36494956,"3,920.00",S3 9DL
Department of Health,NHS Sheffield CCG,30/04/2021,C&M-PMS PCN DES Clinical Director,PRC DELEGATED CO-COMMISSIONING,FORGE HEALTH GROUP,36494956,"6,802.20",S3 9DL
Department of Health,NHS Sheffield CCG,30/04/2021,C&M-PMS PCN DES PCN support,LOCAL ENHANCED SERVICES,FORGE HEALTH GROUP,36494956,"14,171.26",S3 9DL
Department of Health,NHS Sheffield CCG,30/04/2021,C&M-PMS PCN DES Participation,PRC DELEGATED CO-COMMISSIONING,FORGE HEALTH GROUP,36494956,"2,290.08",S3 9DL
Department of Health,NHS Sheffield CCG,30/04/2021,C&M-PMS Prof fees Prescribing,PRC DELEGATED CO-COMMISSIONING,FORGE HEALTH GROUP,36494956,309.62,S3 9DL
Department of Health,NHS Sheffield CCG,30/04/2021,C&M-PMS QOF Aspiration,PRC DELEGATED CO-COMMISSIONING,FORGE HEALTH GROUP,36494956,"12,932.46",S3 9DL
Department of Health,NHS Sheffield CCG,30/04/2021,Service Charge,ESTATES AND FACILITIES,NHS PROPERTY SERVICES LTD,36507652,"29,314.03",EC2V 7NG
Department of Health,NHS Sheffield CCG,30/04/2021,Service Charge,RECHARGES NHS PROPERTY SERVICES LTD,NHS PROPERTY SERVICES LTD,36507652,"9,771.34",EC2V 7NG
Department of Health,NHS Sheffield CCG,30/04/2021,Hcare Srv Rec Fdtn Trust-Contract Baseline,ACUTE COMMISSIONING,ROTHERHAM NHS FOUNDATION TRUST,36507831,"34,876.13",S60 2UD
Department of Health,NHS Sheffield CCG,30/04/2021,Professional Fees,BEREAVEMENT SERVICE,BJSS LTD,36524757,"57,060.00",LS1 4HR
Department of Health,NHS Sheffield CCG,30/04/2021,Hcare Srv Rec Fdtn Trust-Contract Baseline,MENTAL HEALTH CONTRACTS,SHEFFIELD HEALTH & SOCIAL CARE NHS FOUNDATION TRUST,36524798,"-260,000.00",S10 3TH
Department of Health,NHS Sheffield CCG,30/04/2021,Computer Software/License,PROCUREMENT,COMMERCE DECISIONS LTD,36530640,"54,525.63",OX14 4RY
Department of Health,NHS Sheffield CCG,30/04/2021,Computer Software/License,PROCUREMENT,COMMERCE DECISIONS LTD,36530640,"10,905.13",OX14 4RY
Department of Health,NHS Sheffield CCG,30/04/2021,C&M-GMS PCN DES Clin Pharmacist,PRC DELEGATED CO-COMMISSIONING,PRIMARY CARE SHEFFIELD LTD,36535590,"21,973.87",S9 4EU
Department of Health,NHS Sheffield CCG,30/04/2021,C&M-GMS PCN DES Soc Prescribing,PRC DELEGATED CO-COMMISSIONING,PRIMARY CARE SHEFFIELD LTD,36535590,"4,059.00",S9 4EU
Department of Health,NHS Sheffield CCG,30/04/2021,C&M-PCN DES PHARMACY TECHNICIANS,PRC DELEGATED CO-COMMISSIONING,PRIMARY CARE SHEFFIELD LTD,36535590,"2,563.16",S9 4EU
Department of Health,NHS Sheffield CCG,30/04/2021,Participation Fees,BEREAVEMENT SERVICE,SHEFFIELD WILDLIFE TRUST,36544804,"40,000.00",S2 2SF
Department of Health,NHS Sheffield CCG,30/04/2021,Participation Fees,CLINICAL LEADS,BARNSLEY HOSPITAL NHS FOUNDATION TRUST,36544850,"42,000.00",S75 2EP
Department of Health,NHS Sheffield CCG,30/04/2021,Hcare Srv Rec Fdtn Trust-Non Contract,ACUTE COMMISSIONING,SHEFFIELD TEACHING HOSPITALS NHS FOUNDATION TRUST,36544891,"34,000.00",S5 7AU
